Workbook

Sheet Narrative & Detail Budget
M1: Place an "X" by the applicable response.
D2: Virginia Department of Education | M2: X | N2: Original
D3: Office of Program Administration and Accountability
D4: P. O. Box 2120 | N4: Revision :
D5: Richmond, Virginia 23218-2120 | N5: Revision #
N6: Date:
F7: A. COVER PAGE | N7: Explain
E8: Title II, Part A, Supporting Effective Instruction | N8: Amendment:
E9: Due by July 1, 2018 | N9: Amendment #
D10: 2018-2019 Individual Program Application | N10: Date:
D11: Elementary and Secondary Education Act of 1965 (ESEA), as amended by | N11: Explain
D12: the Every Student Succeeds Act of 2015 (ESSA). P.L. 114-95
A13: To be Completed by School Division
A14: Applicant (Legal Name of Agency) | H14: Division | J14: Title II, Part A, Coordinator
A15: ALBEMARLE COUNTY PUBLIC SCHOOLS | H15: Number | I15: =IF(ISBLANK(A15)," ",VLOOKUP(A15,Prefills!A2:B148,2)) -> 2 | J15: Debora Collins
A16: Mailing Address (Street, City or Town, Zip Code) | H16: Phone: | J16: 434-296-5820 | M16: Ext:
A17: 401 McIntire Road Charlottesville, VA 22902 | H17: Email:
H18: dcollins@k12albemarle.org
A20: LOCAL EDUCATIONAL AGENCY CERTIFICATION
A21: Use of Funds: The applicant designated above applies for an allocation of federal assistance as appropriated under ESEA. Funds are available to support local education reform efforts that are consistent with statewide education reform efforts to: 1) provide funding to implement promising education reform programs and school improvement programs based on evidence-based research; 2) provide a continuing source of innovative and educational improvement; 3) meet the educational needs of all students; and 4) develop and implement education programs to improve student achievement and teacher performance. Specific uses of funds for this application are found in the "Guidelines, Instructions, and Assurances" document.
A23: Assurances: The local educational agency assures that the Title II, Part A, program will be administered and implemented in compliance with all applicable statutes, regulations, policies, and program plans. Additionally, the local educational agency agrees by signing below to implement the general and program specific assurances located in the “Application Guidelines, Instructions, and Assurances” document. The assurances and signed cover page are to be retained at the division level.
A25: Certification: We hereby certify that, to the best of our knowledge, the information contained in this application is correct. The agency named above has authorized us as its representatives to file this application, and such action is recorded in the minutes of the School Board meeting held
A26: on | B26: 2018-06-14 | E26: .
A29: Superintendent’s Signature | H29: Board Chairperson’s Signature
A30: Dr. Pamela Moran | H30: Dr. Katherine Acuff
A31: Superintendent’s Name | H31: Board Chairperson’s Name
A32: 2018-06-14 | H32: 2018-06-14
A33: Date | H33: Date
A36: Application Submission, Approval, and LEA Expenditure of Funds: Applications for Federal Funds are due by July 1, 2018. Revisions and Amendments should be submitted in a timely manner. Please note, in order for the funds to be expendable by July 1, 2018, the electronic application must be received at the Virginia Department of Education by July 1, 2018, through the file submission process of the Online Management of Education Grant Awards (OMEGA) system.
A38: An award notification is issued by the Virginia Department of Education through OMEGA once an application is fully approved and the allocation is available.
A40: Page 1
E41: School Division: | G41: =$A$15 -> ALBEMARLE COUNTY PUBLIC SCHOOLS | M41: Division Number: | P41: =$I$15 -> 2
A42: APPLICATION INFORMATION
A44: 2017 - 2018 Allocation | C44: 2017-2018 Consolidated Yes or No | E44: ELIGIBLE PROGRAM | N44: 2018 - 2019 Allocation Total
A46: =IF(ISBLANK($A$15)," ",VLOOKUP($P$41,Prefills!$AL$3:$AO$143,4)) -> 283835.02 | C46: No | E46: Title II, Part A, Supporting Effective Instruction | N46: 283835.02
E47: Transferability (funds transferred out of Title IIA) | N47: =M70 -> 0
I48: Total Allocation Available for Title II, Part A | N48: =N46-N47 -> 283835.02
A53: TRANSFERABILITY
A55: Section 5103(b)(2) of the Every Student Succeeds Act allows LEAs to transfer funds between certain qualifying federal programs. If funds are transferred into or out of the Title II, Part A, program, PRIOR APPROVAL IS REQUIRED, and a separate Transferability approval form must be submitted. The transfer request form is available at
A56: http://www.doe.virginia.gov/federal_programs/esea/forms/lea_funds_transfer_request.docx.
A58: 1) If funds are to be transferred INTO Title II, Part A, complete Section A.
A59: A. Program from which funds will be transferred | G59: Select program(s) TO which funds will be transferred: | M59: Amount
A60: Title IV, Part A | F60: TO | G60: Title II, Part A, Supporting Effective Instruction | M60: 42505.36
A62: 2) If funds are to be transferred OUT of Title II, Part A, complete Section B below.
A63: B. Program from which funds will be transferred: | G63: Select program(s) TO which funds will be transferred: | M63: Amount
A64: Title II, Part A | F64: TO | H64: Title I, Part A
H65: Title I, Part C
H66: Title I, Part D
H67: Title III, Part A
H68: Title IV, Part A
H69: Title V, Part B
H70: Total | M70: =SUM(M64:P69) -> 0
A72: Page 2
E73: School Division: | G73: =$A$15 -> ALBEMARLE COUNTY PUBLIC SCHOOLS | M73: Division Number: | P73: =$I$15 -> 2
A74: REVISIONS AND AMENDMENTS
A76: Place an "X" in the first box indicating whether it is a revision or amendment. Enter the date of the revision or amendment. Indicate the tab(s) that have been changed. Provide a concise description of changes (for example, "Programmatic Changes--purchase of additional reading materials, object code 6000; Budget Changes--decreased travel budget in object code 5000 and increased materials to purchase additional reading materials in object code 6000"). When completing an amendment, changes to the program overview may be reflected as additions at the end of the narrative. NOTE: Any changes to the program budget should first be reflected in an amended application, followed by a budget transfer within 7 business days of approval of the amended application. Budget transfers will not be accepted without an approved amended application reflecting budget changes.
A78: 1. | B78: Revision | F78: Date:
B79: Amendment | F79: Date:
A81: 2. | B81: Revision | F81: Date:
B82: Amendment | F82: Date:
A84: 3. | B84: Revision | F84: Date:
B85: Amendment | F85: Date:
A87: 4. | B87: Revision | F87: Date:
B88: Amendment | F88: Date:
A90: 5. | B90: Revision | F90: Date:
B91: Amendment | F91: Date:
A93: 6. | B93: Revision | F93: Date:
B94: Amendment | F94: Date:
A96: 7. | B96: Revision | F96: Date:
B97: Amendment | F97: Date:
A99: 8. | B99: Revision | F99: Date:
B100: Amendment | F100: Date:
A102: 9. | B102: Revision | F102: Date:
B103: Amendment | F103: Date:
A105: Page 3
E106: School Division: | G106: =$A$15 -> ALBEMARLE COUNTY PUBLIC SCHOOLS | M106: Division Number: | P106: =$I$15 -> 2
A107: B. PROGRAM OVERVIEW (3 PAGES)
A109: In narrative format:
B110: Describe, as applicable, how the instructional program or program of services will align with Virginia's accountability plan and support student achievement, including descriptions of the following:
C111: • how the activities are aligned to challenging State academic standards;
C112: • the school division's system of professional growth and improvement, such as induction for teachers, principals, or other school leaders and opportunities for building the capacity of teachers and opportunities to develop meaningful teacher leadership.
C113: • how the division ensures that students are taught by qualified and effective teachers meeting Virginia licensing and professional teaching requirements.
C114: • how the school division will prioritize funds to schools that are implementing comprehensive support and improvement activities and targeted support and improvement activities under section 1111(d) and have the highest percentage of children counted under section 1124(c).
C115: •how the local educational agency will use data and ongoing consultation to continually update and improve activities supported with Title II, Part A, funds.
B116: Describe the consultation process used in development of the program, including a description of the stakeholders involved in the process.
B117: Describe the targeted population(s). (Examples are: instructional and administrative staff, principals, paraprofessionals, etc.)
B118: Explain how the instructional program or program of services supplements, not supplants, the core instructional program or services.
A119: ACPS will support effective instruction by providing ongoing professional development opportunities for teachers, designed to promote deeper content knowledge and the use of best instructional practices in core content areas. Division-based opportunities and registration for them are maintained on our website, as are opportunities for non-teachers and for division leaders. Albemarle County Schools also follows an approach to professional development that is hands-on and ongoing, through the practices of our instructional coaches who work with teachers in their school settings. The coaches provide training in the diagnostic and prescriptive use of formative assessment in all core instruction areas - reading, mathematics, science, and social studies - to align with Virginia academic standards. Our division has devised a system in which Lead Academic Coaches oversee the instructional practices and personnel across the division, including the instructional coaches. This links to our development and use of a high yield assessment model, which ensures
A120: that learning environments are highly aligned with consistent teaching and learning practices throughout the division. This model also supports students' deep understanding of content, enabling them to attain the goals within rigorous State standards. Instructional leaders evaluate teacher and student needs based on student assessment results; survey responses from teachers, parents and division staff members; and from examination of division teacher qualifications outlined in the annual IPAL report. Results from the 2016-2017 IPAL report show that our school division has a high rate of licensure (99%) and a high rate of class sections taught by properly licensed and endorsed teachers (over 93%). Professional development will continue to be offered for teachers seeking full licensure, and funds under this grant will be used primarily to ensure that all student groups, including low income and minority subgroups, will be taught by experienced, licensed teachers, teaching in their endorsement areas.
A121: In school year 2017-2018, the SEAD (Social, Emotional & Academic Development) program was initiated at four Title I schools (see Teacher Quality section), with the goal of closing learningopportunity gaps among at-risk students. SEAD team staff are charged with removing learning barriers that correlate with social or cultural factors; creating inclusive multicultural school environments for adults and children; and cultivating the unique gifts, talents and interests possessed by every student. This new program allows for ongoing consultation among stakeholders in the four Title I schools served and will continue to have a strong role in promoting academic growth and improvement in these schools.
A122: Page 4
E123: School Division: | G123: =$A$15 -> ALBEMARLE COUNTY PUBLIC SCHOOLS | M123: Division Number: | P123: =$I$15 -> 2
A124: B. PROGRAM OVERVIEW (CONTINUED)
A131: Page 5
E132: School Division: | G132: =$A$15 -> ALBEMARLE COUNTY PUBLIC SCHOOLS | M132: Division Number: | P132: =$I$15 -> 2
A133: B. PROGRAM OVERVIEW (CONTINUED)
A140: Page 6
E141: School Division: | G141: =$A$15 -> ALBEMARLE COUNTY PUBLIC SCHOOLS | M141: Division Number: | P141: =$I$15 -> 2
A142: C. COORDINATION OF SERVICES (2 PAGES)
A144: Describe the partnerships within the division among the programs in this application and other federal, state and/or local programs in the delivery of services to the targeted population(s). Describe the collaboration of program staff, parents, and the community to provide services and activities that will contribute to the attainment of the measurable objectives in this application.
A145: On a monthly basis, the coordinators of the federal programs in ACPS meet to collaborate and ensure that the services provided through and by the grant programs meet the needs of our students and school division staff populations. Title I, Part A and Part C, Title II, Title III/ESOL, Homeless, and Adult ESOL are included in these collaborative work sessions. The Office of Instruction and Title I staff work to develop increased parent involvement across the division, to spur instructional support at home from parents, and to increase parent participation at school events. The Adult ESOL program provides Family Literacy classes for Title I ESOL students and families through the "Integrated English Language Civics" grant. Tutors for identified Homeless students are provided through the Title I grant, to assist in support of academics for these at-risk students. Coordination among federal programs' leaders and members of the new SEAD team, described in the Program Overview section, will be a priority in the new school year, to further ensure academic success among at-risk students.
A146: Regarding support from outside programs, the services of the University of Virginia Consortium, the Curry School of Education at UVA, and the Curry Center for Technology and Teacher Education are available for consultation, support on advisory committees, graduate level courses (on campus, online, and at ACPS facilities), workshops, seminars, and partnerships with individual schools.
A150: Page 7
E151: School Division: | G151: =$A$15 -> ALBEMARLE COUNTY PUBLIC SCHOOLS | M151: Division Number: | P151: =$I$15 -> 2
A152: C. COORDINATION OF SERVICES (CONTINUED)
A159: Page 8
E160: School Division: | G160: =$A$15 -> ALBEMARLE COUNTY PUBLIC SCHOOLS | M160: Division Number: | P160: =$I$15 -> 2
A161: D. MEASURABLE OBJECTIVES
A163: 1. | B163: State up to eight measurable objectives that will guide the development of the program to be funded with the requested ESEA federal funds.
A164: 2. | B164: Describe the evidence-based research that support the services and activities (programs, models, instructional methods, and techniques) that will be implemented to achieve each objective and that will be supported by the requested funds. Note: Measurable objectives should be aimed at supporting the mastery of K-12 college- and career-ready standards, proficiency on corresponding state assessments, teacher quality, parental involvement, and other allowable objectives as defined under ESEA program areas and identified through local needs assessment and stakeholder consultations.
A165: Measurable Objective 1:
A166: By the end of the 2018-2019 school year, language arts, mathematics, science, and social studies teachers will use student performance data to inform instruction. They will use appropriate curriculum integration (i.e., instructional practice, effective use of technology, and interdisciplinary instruction) to move the division toward its goal of 90% pass rates on the Reading, Math, Science, and Social Studies SOLs, and improved pass rates for the NCLB subgroups.
A168: Evidence-based services and activities that will be implemented and supported by the requested funds to achieve the objective:
A169: The Instructional Coaches will serve as instructional resources for mathematics, reading/language arts, science, and social studies curricula, instruction, and assessment. A key objective for each Instructional Coach will be to assist teachers in using data as a basis for planning and implementing improved instruction. They will also collaborate with other staff for appropriate curriculum integration as well as focus on providing teachers specific strategies for improving core subject outcomes for struggling readers.
A171: Measurable Objective 2:
A172: By the end of the 2018-2019 school year, 100% of teachers in Albemarle County will be fully licensed in the state of Virginia.
A174: Evidence-based services and activities that will be implemented and supported by the requested funds to achieve the objective:
A175: Provisionally licensed teachers will be offered counseling by Albemarle County's Human Resources Department and by Instructional Coaches. When hiring inexperienced teachers with provisional licenses, principals will work to ensure that all teachers become licensed before being re-employed for the next school year.
A176: Page 9
E177: School Division: | G177: =$A$15 -> ALBEMARLE COUNTY PUBLIC SCHOOLS | M177: Division Number: | P177: =$I$15 -> 2
A178: D. MEASURABLE OBJECTIVES (CONTINUED)
A179: Measurable Objective 3:
A180: By the end of the 2018-2019 school year, two selected teachers will have completed courses in reading and other content area endorsements toward full licensure.
A182: Evidence-based services and activities that will be implemented and supported by the requested funds to achieve the objective:
A183: The division will provide college courses in the areas of literacy development or other discipline-specific courses to improve content area knowledge. In order to attract and retain qualified teachers, the division will continue to provide tuition reimbursement for content area coursework.
A185: Measurable Objective 4:
A188: Evidence-based services and activities that will be implemented and supported by the requested funds to achieve the objective:
A191: Page 10
E192: School Division: | G192: =$A$15 -> ALBEMARLE COUNTY PUBLIC SCHOOLS | M192: Division Number: | P192: =$I$15 -> 2
A193: D. MEASURABLE OBJECTIVES (CONTINUED)
A194: Measurable Objective 5:
A197: Evidence-based services and activities that will be implemented and supported by the requested funds to achieve the objective:
A200: Measurable Objective 6:
A203: Evidence-based services and activities that will be implemented and supported by the requested funds to achieve the objective:
A205: Page 11
E206: School Division: | G206: =$A$15 -> ALBEMARLE COUNTY PUBLIC SCHOOLS | M206: Division Number: | P206: =$I$15 -> 2
A207: D. MEASURABLE OBJECTIVES (CONTINUED)
A208: Measurable Objective 7:
A211: Evidence-based services and activities that will be implemented and supported by the requested funds to achieve the objective:
A214: Measurable Objective 8:
A216: Evidence-based services and activities that will be implemented and supported by the requested funds to achieve the objective:
A218: Page 12
E219: School Division: | G219: =$A$15 -> ALBEMARLE COUNTY PUBLIC SCHOOLS | M219: Division Number: | P219: =$I$15 -> 2
A220: E. DETAIL BUDGET BREAKDOWN
A222: Prepare a detailed breakdown of the budget categories for Object Codes 1000-6000 and 8000.
A223: The amounts by program and object codes totals are to be entered on the Summary Budget Sheet under the appropriate area.
A224: Do the totals equal the Summary Budget sheet? | I224: =IF(SUM('Summary Budget'!G48:P48)=SUM(N240,N256,N296,N337,N378,N418,N457),"Yes","No -please review your entries.") -> Yes
A226: BREAKDOWN OF STAFF POSITIONS
A227: OBJECT CODE 1000
A228: Provide a description of the positions supported with funds from this program. Indicate if any positions are newly funded under this program. Explain the supplementary nature of any new positions. (Required if staff positions are to be funded by federal funds.)
A229: Instructional Coaches will serve as instructional resources in the areas of math, reading/language arts, science, and social studies curricula, instruction, and assessment. They will train other teachers to use data as a basis for planning and implementing improved instruction and will focus on providing novice and other teachers specific strategies for improving core subject outcomes for struggling learners.
A231: Item Description | M231: FTEs | N231: Total Cost
A232: Value of professional development personnel-related services or stipends on behalf of private schools
A233: Instructional Coaches | M233: 3.3 | N233: 182650
K240: Total for Object Code: | M240: =SUM(M232:M239) -> 3.3 | N240: =SUM(N232:P239) -> 182650
A242: DETAILED BUDGET DESCRIPTION OF OBJECT CODE 2000
A243: Indicate the fixed charge categories (such as FICA, health, etc.) and specify the amount of each.
A244: FICA, VSRS, Group Life, Health and Dental Insurance will be paid for the Instructional Coach positions.
A246: Item Description | N246: Total Cost
A247: Private School Set-aside
A248: FICA | N248: 13976.32
A249: VSRS [Virginia State Retirement System] | N249: 38026
A250: Group Life Insurance | N250: 2952
A251: Health Insurance [8,278 per 1.0 FTE] | N251: 24834
A252: Dental Insurance [296 per 1.0 FTE] | N252: 888
K256: Total for Object Code: | N256: =SUM(N247:P255) -> 80676.32
A257: Page 13
E258: School Division: | G258: =$A$15 -> ALBEMARLE COUNTY PUBLIC SCHOOLS | M258: Division Number: | P258: =$I$15 -> 2
A259: DETAILED BUDGET DESCRIPTION OF OBJECT CODE 3000
A260: Provide a description for expenses related to object code 3000. Please describe planned expenditures as they relate to the identified programs and activities to achieve stated measurable objective(s). Indicate how these funds will support any services and activities that are described in the application.
A261: The six participating private schools have developed professional development plans to address needs at their schools, including the areas of instructional technology integration, STEAM curriculum and integration, advanced placement course instruction, Singapore Math and My Math curriculum advancement, physical education practices, and Understanding by Design. One school will support teachers through graduate coursework assistance; another will seek furtherance of their teachers' Waldorf certifications through summer online and on-site programming. Another participating school will provide targeted coaching for teacher deficiency. Private schools also have plans for staff members to attend conferences that enhance subject area expertise, such as the National Conference of Teachers of Math. Attendance at Responsive Classroom training is also planned by two schools.
A262: of Teachers of Math. Attendance at Responsive Classroom training is also planned by two schools.schools, to improve classroom management and culture.
A263: Item Description | N263: Total Cost
A264: Private School Set-aside | N264: 11000
K296: Total for Object Code: | N296: =SUM(N264:P295) -> 11000
A297: Page 14
E298: School Division: | G298: =$A$15 -> ALBEMARLE COUNTY PUBLIC SCHOOLS | M298: Division Number: | P298: =$I$15 -> 2
A299: DETAILED BUDGET DESCRIPTION OF OBJECT CODE 4000
A300: Provide a description of charges from an Internal Service Fund to other functions/activities/elements of the local government for the use of intragovernmental services.
A303: Item Description | N303: Total Cost
K337: Total for Object Code: | N337: =SUM(N304:P336) -> 0
A338: Page 15
E339: School Division: | G339: =$A$15 -> ALBEMARLE COUNTY PUBLIC SCHOOLS | M339: Division Number: | P339: =$I$15 -> 2
A340: DETAILED BUDGET DESCRIPTION OF OBJECT CODE 5000
A341: Provide a description for expenses related to object code 5000.
A342: Private school staff will participate in a variety of professional development experiences, as described in the narrative of Object Code 3000, and they will require travel and other expense reimbursements.
A344: Item Description | N344: Total Cost
A345: Private School Set-aside | N345: 7000
K378: Total for Object Code: | N378: =SUM(N345:P377) -> 7000
A379: Page 16
E380: School Division: | G380: =$A$15 -> ALBEMARLE COUNTY PUBLIC SCHOOLS | M380: Division Number: | P380: =$I$15 -> 2
A381: DETAILED BUDGET DESCRIPTION FOR OBJECT CODE 6000
A382: Provide a description for expenses related to object code 6000 Materials and Supplies. Include articles and commodities that are consumed or materially altered when used and minor equipment that is not capitalized. This includes any equipment purchased under $5,000, unless the LEA has set a lower capitalization threshold. Therefore, computer equipment under $5,000 should be reported in “materials and supplies.”
A383: Private schools have included the purchase of professional development materials, to accompany their plans for the school year. These may include content area materials to enhance classroom instruction, as well as student engagement resources.
A385: Item Description | L385: Quantity | N385: Total Cost
A386: Private School Set-aside | N386: 2508.7
I418: Total for Object Code: | L418: =SUM(L386:M417) -> 0 | N418: =SUM(N386:P417) -> 2508.7
A419: Page 17
E420: School Division: | G420: =$A$15 -> ALBEMARLE COUNTY PUBLIC SCHOOLS | M420: Division Number: | P420: =$I$15 -> 2
A421: DETAILED BUDGET DESCRIPTION FOR OBJECT CODE 8000
... 25 more rows

Sheet Summary Budget
D1: School Division: | F1: ='Narrative & Detail Budget'!A15 -> ALBEMARLE COUNTY PUBLIC SCHOOLS | Q1: Division Number: | V1: ='Narrative & Detail Budget'!I15 -> 2
A2: F. BUDGET SUMMARY
A3: Title II, Part A
G4: A. Title II, Part A Budget for 2018-2019 Award S367A180044 Project Code APE61481 | S4: Does Budget Summary match Detail Budget tab?
A5: 2018-2019 Allocation: | G5: ='Narrative & Detail Budget'!N48 -> 283835.02
A6: OBJECT CODE | B6: EXPENDITURE | G6: AMOUNT BUDGETED Title II, Part A | Q6: FTEs
A8: 1000 - Personal Services | B8: Administration of Title IIA program | G8: 0
B9: Professional Development | G9: 182650
B10: Class-Size Reduction Teachers | G10: 0
B11: Substitute Teachers | G11: 0
B12: Teacher Incentives | G12: 0
B13: Other | G13: 0
B14: Value of professional development personnel-related services or stipends on behalf of private schools | G14: 0
B15: Total Personal Services | G15: =SUM(G8:P14) -> 182650 | S15: =IF(SUM(G15:P15)=SUM('Narrative & Detail Budget'!N240),"Yes","No -please review your entries.") -> Yes
A16: 2000 - Employee Benefits | B16: Fixed Charges (Title IIA Administration) | G16: 0
B17: Fixed Charges | G17: 80676.32
B18: Teacher Incentives | G18: 0
B19: Value of professional development personnel-related benefits on behalf of private schools | G19: 0
B20: Total Employee benefits | G20: =SUM(G16:P19) -> 80676.32 | S20: =IF(SUM(G20:P20)=SUM('Narrative & Detail Budget'!N256),"Yes","No -please review your entries.") -> Yes
A21: 3000 - Purchased/ Contracted Services | B21: Supportive Services (Med., Dental)
B22: Professional Development
B23: Teacher Quality (i.e., assessments; recruitment) | G23: 0
B24: Private School Set-Aside | G24: 11000
B25: Other | G25: 0
B26: Total Purchased/Contracted Services | G26: =SUM(G21:P25) -> 11000 | S26: =IF(SUM(G26:P26)=SUM('Narrative & Detail Budget'!N296),"Yes","No -please review your entries.") -> Yes
A27: 4000 - Internal Services | B27: Pupil Transportation
B28: Food Services | G28: 0
B29: Other | G29: 0
B30: Total Internal Services | G30: =SUM(G27:P29) -> 0 | S30: =IF(SUM(G30:P30)=SUM('Narrative & Detail Budget'!N337),"Yes","No -please review your entries.") -> Yes
A31: 5000 - Other Charges | B31: Professional Development (conference registrations, tuition, etc.) | G31: 0
B32: Travel | G32: 0
B33: Maintenance of Plant
B34: Operation of Plant
B35: Indirect Cost | G35: 0
B36: Other | G36: 0
B37: Private School Set-Aside | G37: 7000
B38: Total Other Charges | G38: =SUM(G31:P37) -> 7000 | S38: =IF(SUM(G38:P38)=SUM('Narrative & Detail Budget'!N378),"Yes","No -please review your entries.") -> Yes
A39: 6000 - Materials and Supplies | B39: Administrative (Title IIA program) | G39: 0
B40: Professional Development | G40: 0
B41: Private School Set-Aside | G41: 2508.7
B42: Total Materials and Supplies | G42: =SUM(G39:P41) -> 2508.7 | S42: =IF(SUM(G42:P42)=SUM('Narrative & Detail Budget'!N418),"Yes","No -please review your entries.") -> Yes
A43: 8000 - Capital Outlay | B43: Equipment for Instruction
B44: Buildings
B45: Remodeling
B46: Professional Development Equipment | G46: 0
B47: Total Capital Outlay | G47: =SUM(G43:P46) -> 0 | S47: =IF(SUM(G47:P47)=SUM('Narrative & Detail Budget'!N457),"Yes","No -please review your entries.") -> Yes
B48: Total Budget | G48: =SUM(G15,G20,G26,G30,G38,G42,G47) -> 283835.02
B49: Total Private School Set-Aside | G49: =SUM(G14+G19+G24+G37+G41) -> 20508.7
D50: Does Grand Total above equal the 2018-2019 Allocation on the "Narrative & Detail Budget" Tab? | G50: =IF(SUM(G48)=G5,"Yes","No -please review your entries.") -> Yes
A52: Note: | B52: Object codes 7000 and 9000 are not ussed in application budgets or in requests for reimbursements for this federal grant.
A53: Page 25
O54: =IF(F54="yes",M54*#REF!,"") -> 
O55: =IF(F55="yes",M55*#REF!,"") -> 
O56: =IF(F56="yes",M56*#REF!,"") -> 
O57: =IF(F57="yes",M57*#REF!,"") -> 
O58: =IF(F58="yes",M58*#REF!,"") -> 
A59: Per Pupil Expenditure (calculated field): | F59: =IF(ISERROR(SUM(#REF!)/(SUM(#REF!)+SUMIF(F54:L58,"Yes",M54:N58))),0,SUM(#REF!)/(SUM(#REF!)+SUMIF(F54:L58,"Yes",M54:N58))) -> 0 | M59: Total | O59: =SUM(O54:P58) -> 0

Sheet Transferability
E1: School Division: | G1: ='[1]Narrative & Detail Budget'!$A$15 -> 0 | N1: Division Number: | R1: ='[1]Narrative & Detail Budget'!I15 -> 
A2: G. TRANSFERABILITY
A4: Section 5103(b)(2) of ESSA allows divisions to transfer all or a portion of the funds received from Title II, Part A, or Title IV, Part A, into: Title I, Part A; Title I, Part C; Title I, Part D; Title II, Part A; Title III, Part A; Title IV, Part A; or Title V, Part B.
A6: Complete the tab below if funds will be transferred under Section 5103(b)(2). Please note that prior approval is required to transfer funds. The transfer request form is provided at
A7: http://www.doe.virginia.gov/federal_programs/esea/forms/lea_funds_transfer_request.docx.
D9: Amount Budgeted
D10: Title I, Part A | F10: Title I, Part C | H10: Title I, Part D | J10: Title II, Part A | L10: Title III, Part A | P10: Title IV, Part A | Q10: Title V, Part B
L11: EL | N11: IY
D12: Title II, Part A, Transferability | E12: Title IV, Part A, Transferability | F12: Title II, Part A, Transferability | G12: Title IV, Part A, Transferability | H12: Title II, Part A, Transferability | I12: Title IV, Part A, Transferability | J12: Title IV, Part A, Transferability Award S424A180048 Project Code APE60022 | L12: Title II, Part A, Transferability | M12: Title IV, Part A, Transferability | N12: Title II, Part A, Transferability | O12: Title IV, Part A, Transferability | P12: Title II, Part A, Transferability | Q12: Title II, Part A, Transferability | R12: Title IV, Part A, Transferability
A13: Amount Transferred to Program | J13: ='Narrative & Detail Budget'!M60 -> 42505.36
A14: OBJECT CODE - EXPENDITURE TYPE
A15: 1000 - Personal Services
A16: Administration | J16: 0
A17: Teachers | J17: 36631.68
A18: Paraprofessionals | J18: 0
A19: Teacher Incentives | J19: 0
A20: Focus Schools, if applicable
A21: Other Title I Schools in Improvement, if applicable
A22: Private School Set-Aside
A23: Parent and Family Engagement
A24: Professional Development | J24: 0
A25: Value of professional development personnel-related services or stipends on behalf of private schools | J25: 0
A26: Other | J26: 0
A27: Total Personal Services | J27: =SUM(J16:K26) -> 36631.68
A28: 2000 - Employee Benefits
A29: Fixed Charges (Administrative) | J29: 0
A30: Fixed Charges (Instructional and Other) | J30: 2802.43
A31: Teacher Incentives | J31: 0
A32: Other Title I Schools in Improvement, if applicable
A33: Private School Set-Aside
A34: Fixed Charges (Parent and Family Engagement)
A35: Fixed Charges (Professional Development) | J35: 0
A36: Value of professional development personnel-related benefits on behalf of private schools | J36: 0
A37: Total Employee Benefits | J37: =SUM(J29:K36) -> 2802.43
A38: 3000 - Purchased/Contracted Services
A39: Supportive Services (Med., Dental)
A40: Evaluation Services | J40: 0
A41: Priority Schools, if applicable
A42: Focus Schools, if applicable
A43: Parent and Family Engagement
A44: Other Title I Schools in Improvement, if applicable
A45: Private School Set-Aside | J45: 3071.25
A46: Professional Development | J46: 0
A47: Teacher Quality (i.e., assessments; recruitment) | J47: 0
A48: Tutoring Services
A49: Other | J49: 0
A50: Total Purchased/Contracted Services | J50: =SUM(J39:K49) -> 3071.25
A51: 4000 - Internal Services
A52: Public School Choice Transportation
A53: Pupil Transportation
A54: Food Services | J54: 0
A55: Priority Schools, if applicable
A56: Focus Schools, if applicable
A57: Other Title I Schools in Improvement, if applicable
A58: Private School Set-Aside | J58: 0
A59: Professional Development | J59: 0
A60: Parent and Family Engagement
A61: Other | J61: 0
A62: Total Internal Services | J62: =SUM(J52:K61) -> 0
A63: 5000 - Other Charges
A64: Travel (Staff/Administrative) | J64: 0
A65: Maintenance/Operation of Plant
A66: Indirect Cost | J66: 0
A67: Priority Schools, if applicable
A68: Focus Schools, if applicable
A69: Other Title I Schools in Improvement, if applicable
A70: Private School Set-Aside | J70: 0
A71: Professional Development | J71: 0
A72: Parent and Family Engagement
A73: Other | J73: 0
A74: Total Other Charges | J74: =SUM(J64:K73) -> 0
A75: 6000 - Materials and Supplies
A76: Administrative | J76: 0
A77: Instructional
A78: Priority Schools, if applicable
A79: Focus Schools, if applicable
A80: Other Title I Schools in Improvement, if applicable
A81: Private School Set-Aside | J81: 0
A82: Professional Development | J82: 0
A83: Parent and Family Engagement
A84: Other
A85: Total Materials and Supplies | J85: =SUM(J76:K84) -> 0
A86: 8000 - Capital Outlay
A87: Equipment for Instruction
A88: Buildings
A89: Remodeling
A90: Professional Development | J90: 0
A91: Parent and Family Engagement
A92: All Other Equipment
A93: Total Capital Outlay | J93: =SUM(J87:K92) -> 0
A94: Total Private School Set-Aside | J94: =J25+J36+J45+J58+J70+J81 -> 3071.25
A95: TOTAL BUDGET | J95: =SUM(J27,J37,J50,J62,J74,J85,J93) -> 42505.36
A96: Does Budget Match Amount Transferred to Program? | J96: =IF(J95=J13,"Yes","No") -> Yes
A97: Page 27
E98: School Division: | G98: ='Narrative & Detail Budget'!$A$15 -> ALBEMARLE COUNTY PUBLIC SCHOOLS | N98: Division Number: | Q98: ='Narrative & Detail Budget'!I15 -> 2
A99: DETAIL BUDGET BREAKDOWN
A101: Prepare a detailed breakdown of the budget categories for Object Codes 1000-6000 and 8000.
A102: The amounts by program and object codes totals are to be entered on the Summary Budget Sheet under the appropriate area.
A103: Do the totals equal the Summary Budget sheet? | I103: =IF(SUM(J13)=SUM(N119+N135+N176+N217+N258+N298+N337),"Yes","No -please review your entries.") -> Yes
A105: BREAKDOWN OF STAFF POSITIONS
A106: OBJECT CODE 1000
A107: Provide a description of the positions supported with funds from this program. Indicate if any positions are newly funded under this program. Explain the supplementary nature of any new positions. (Required if staff positions are to be funded by federal funds.)
A108: Same as OC 1000 grant narrative.
A110: Item Description | J110: Funding Source | M110: FTEs | N110: Total Cost
A111: Value of professional development personnel-related services or stipends on behalf of private schools
A112: Instructional Coach | J112: Title IV, Part A, Transferability | M112: 0.7 | N112: 36631.68
J119: Total for Object Code: | M119: =SUM(M111:M118) -> 0.7 | N119: =SUM(N111:P118) -> 36631.68
A121: DETAILED BUDGET DESCRIPTION OF OBJECT CODE 2000
A122: Indicate the fixed charge categories (such as FICA, health, etc.) and specify the amount of each.
A123: FICA for .7 FTE position.
A125: Item Description | K125: Funding Source | N125: Total Cost
A126: Private School Set-aside
A127: FICA, Instructional Coach | K127: Title IV, Part A, Transferability | N127: 2802.43
K135: Total for Object Code: | N135: =SUM(N126:P134) -> 2802.43
A137: Page 28
E138: School Division: | G138: ='Narrative & Detail Budget'!$A$15 -> ALBEMARLE COUNTY PUBLIC SCHOOLS | N138: Division Number: | Q138: ='Narrative & Detail Budget'!I15 -> 2
A139: DETAILED BUDGET DESCRIPTION OF OBJECT CODE 3000
A140: Provide a description for expenses related to object code 3000. Please describe planned expenditures as they relate to the identified programs and activities to achieve stated measurable objective(s). Indicate how these funds will support any services and activities that are described in the application.
A141: Private School set aside, to supplement amount from Title II, Part A.
A143: Item Description | K143: Funding Source | N143: Total Cost
A144: Private School Set-aside | K144: Title IV, Part A, Transferability | N144: 3071.25
K176: Total for Object Code: | N176: =SUM(N144:P175) -> 3071.25
A177: Page 29
E178: School Division: | G178: ='Narrative & Detail Budget'!$A$15 -> ALBEMARLE COUNTY PUBLIC SCHOOLS | N178: Division Number: | Q178: ='Narrative & Detail Budget'!I15 -> 2
A179: DETAILED BUDGET DESCRIPTION OF OBJECT CODE 4000
A180: Provide a description of charges from an Internal Service Fund to other functions/activities/elements of the local government for the use of intragovernmental services.
A183: Item Description | K183: Funding Source | N183: Total Cost
K217: Total for Object Code: | N217: =SUM(N184:P216) -> 0
A218: Page 30
E219: School Division: | G219: ='Narrative & Detail Budget'!$A$15 -> ALBEMARLE COUNTY PUBLIC SCHOOLS | N219: Division Number: | Q219: ='Narrative & Detail Budget'!I15 -> 2
A220: DETAILED BUDGET DESCRIPTION OF OBJECT CODE 5000
A221: Provide a description for expenses related to object code 5000.
A224: Item Description | K224: Funding Source | N224: Total Cost
A225: Private School Set-aside
K258: Total for Object Code: | N258: =SUM(N225:P257) -> 0
A259: Page 31
E260: School Division: | G260: ='Narrative & Detail Budget'!$A$15 -> ALBEMARLE COUNTY PUBLIC SCHOOLS | N260: Division Number: | Q260: ='Narrative & Detail Budget'!I15 -> 2
A261: DETAILED BUDGET DESCRIPTION FOR OBJECT CODE 6000
A262: Provide a description for expenses related to object code 6000 Materials and Supplies. Include articles and commodities that are consumed or materially altered when used and minor equipment that is not capitalized. This includes any equipment purchased under $5,000, unless the LEA has set a lower capitalization threshold. Therefore, computer equipment under $5,000 should be reported in “materials and supplies.”
A265: Item Description | I265: Funding Source | L265: Quantity | N265: Total Cost
A266: Private School Set-aside
I298: Total for Object Code: | L298: =SUM(L266:M297) -> 0 | N298: =SUM(N266:P297) -> 0
A299: Page 32
E300: School Division: | G300: ='Narrative & Detail Budget'!$A$15 -> ALBEMARLE COUNTY PUBLIC SCHOOLS | N300: Division Number: | Q300: ='Narrative & Detail Budget'!I15 -> 2
A301: DETAILED BUDGET DESCRIPTION FOR OBJECT CODE 8000
A302: All capital outlay expenditures in the aggregate over $5,000 must be approved in advance by the Virginia Department of Education. If the local school division has established a threshold of a lesser amount, items equal to that amount or greater must also receive prior approval by the Virginia Department of Education. Nonconsumable items must be listed in the application.
A305: Item Description | H305: Funding Source | J305: Quantity | L305: Cost Per Item | N305: Total Cost
H337: Total for Object Code: | J337: =SUM(J306:K336) -> 0 | L337: =SUM(L306:M336) -> 0 | N337: =SUM(N306:P336) -> 0
A338: Page 33

Sheet GEPA
D1: School Division: | G1: ='Narrative & Detail Budget'!A15 -> ALBEMARLE COUNTY PUBLIC SCHOOLS | M1: Division Number: | P1: ='Narrative & Detail Budget'!I15 -> 2
A2: H. GENERAL EDUCATION PROVISIONS ACT (GEPA) SECTION 427
A4: Section 427 of the General Education Provisions Act (GEPA) requires applicants for federal funds to include in their applications a description of the steps the applicant will take to ensure equitable access to, and participation in, federally-assisted programs for students, teachers, and other program beneficiaries with special needs. The provision allows applicants discretion in developing the required description. The statute highlights six types of barriers that can impede equitable access or participation: gender, race, national origin, color, disability, or age. Based on local circumstances, the applicant should determine whether these or other barriers may prevent students, teachers, etc., from such access or participation in the federally-funded project or activity. The description in the application of steps to be taken to overcome these barriers need not be lengthy; the application may provide a clear and succinct description of how the applicant plans to address those barriers that are applicable to their circumstances.
A6: Describe the steps the division will take to ensure equitable access to, and participation in, grant-funded programs for students, teachers, and other program beneficiaries with special needs as required by the General Education Provisions Act (GEPA) 427, OMB Control No. 1894-00045, Section 427.
A7: Albemarle County is committed to providing equitable access for students, teachers and families in all grant-funded programs and opportunities as required by GEPA 427: 1.Ensuring all events are held in handicapped accessible facilities in geographically convenient locations. Events are held during the day, evening, and on weekends to accommodate family school/work schedules in order to maximize participation. 2. Materias provided are accessible for literate and non-readers as well as in electronic and paper copy formats to inform families that may not have access to social media and email. This includes translation of documents into Spanish and other languages as needed. The ESOL Office annually vets, hires and trains additional interpreters and translators to ensure a high-level of quality with a personalized experience for families. Simultaneous interpretation equipment is used in large-group settings, and InterpreTalk Language
A8: Line services are used when necessary. 3.Albemarle County conducts a variety of outreach programs to address gender and/or race inequalities. Some of these include: Teacher summer reading project, Girls in STEM initiatives, Summer Immersion Excursion programs for newcomers, Camp Invention modules, CoderDojo, World Peace Game, and Saturday family engagement experiences to STEM fairs and other local attractions. 4.Efforts to involve diverse stakeholders in program planning and implementation are robust and include seventeen diverse teams. Advisory groups include Parent Council, Student Advisory, Special Education, Gifted, Title I, and Diversity and Equity. Last but certainly not least, the Title I, Title III, Migrant and Homeless Coordinators all meet monthly with the Director of Federal Programs to collaborate and ensure our students have equitable access to all division opportunities.
A10: Page 34

Sheet Teacher Quality
E1: School Division: | G1: ='Narrative & Detail Budget'!$A$15 -> ALBEMARLE COUNTY PUBLIC SCHOOLS | M1: Division Number: | P1: ='Narrative & Detail Budget'!$I$15 -> 2
A2: I. TEACHER QUALITY
A3: Part 1
A4: Teacher Quality
A5: Under USED’s authority to ensure an orderly transition from ESEA to ESSA, states are no longer required to report highly qualified teacher (HQT) data. Instead, states may rely on licensure and other professional requirements for teachers. However, for program planning purposes for the 2018-2019 school year, the following information on teacher and paraprofessional quality from the 2017-2018 data collection may assist school divisions. These data may be obtained from the most recent verified Instructional Personnel and Licensure Report (IPAL), which provides division results on the licensure and endorsement status of instructional personnel for the 2017-2018 school year.
A6: See Instructional Personnel and Licensure Report (IPAL), as outlined in Superintendent's Memorandum Number #301-17, October 13, 2017.
A9: Teachers (all schools and all federal core content subjects)
A10: Number of classes taught by properly licensed and endorsed teachers | K10: 4477
A11: Number of classes not taught by properly licensed and endorsed teachers | K11: 436
A12: Total classes | K12: =SUM(K10:L11) -> 4913
A13: Percent of classes taught by properly licensed and endorsed teachers | K13: =IF(K12=0,"",K10/K12) -> 0.9112558518
A15: Paraprofessionals (Title I schools only)
A17: For targeted assistance schools, only count instructional paraprofessionals working in the Title I classrooms. For schoolwide schools, count all instructional paraprofessionals in the entire school.
A19: Total Properly Qualified Instructional Paraprofessionals | K19: 2
A20: Total Instructional Paraprofessionals who are Not Properly Qualified | K20: 0
A21: Total Instructional Paraprofessionals | K21: =SUM(K19:L20) -> 2
A22: Percent of Properly Qualified Paraprofessionals | K22: =IF(K21=0,"",K19/K21) -> 1
A24: Part 2
A25: EQUITABLE DISTRIBUTION OF QUALIFIED, EXPERIENCED, AND EFFECTIVE TEACHERS
A27: Describe how the division assures that students in high poverty (Title I) and/or high minority schools are not taught by inexperienced, out-of-field, or ineffective teachers at a higher rate than students in other schools. To do this, divisions may wish to examine teacher licensure and endorsement data from the 2017-2018 school year or other available teacher quality data and teachers' experience levels at the highest poverty (Title I) and/or highest minority schools at each grade span and indicate whether these percentages are similar in other non-Title I schools with lower poverty or minority percentages. Outline strategies used to ensure an equitable distribution, including mentoring programs to support new teachers and professional development activities to support teachers in working with diverse student populations.
A29: Below are 2017-2018 statistics for the elementary (Title I), middle, and high schools, with greatest challenges due to poverty, minority status and teacher inexperience: School Level Minority Enrollment F/R Lunch Inexperienced Teachers (0-3) Licensure Rate Elementary School 1 64% 56% 11% 100% (1 provisional) Elementary School 2 48% 47% 10% 100% Elementary School 3 75% 76% 15% 100% Elementary School 4 59% 57% 18% 100% Middle School 1 52% 43% 2% 96% Middle School 2 54% 51% 11% 100% High School 1 41% 30% 16% 97% (6 provisional) High School 2 37% 34% 17% 96% (5 provisional) Division Rate 36% 31.5% 12% 98% (27 provisional) We use our Title II funds to address the inexperienced teacher concern for these schools in the following ways: 1) An Instructional Coach is assigned to each novice teacher for a required two-year period to provide mentoring that includes assistance with planning and delivery of instruction, classroom management, assessment, and parent communication; 2) Novice teachers meet monthly to discuss and develop strategies to move to the next stage in teaching ability (i.e. monitoring and adjusting pacing guides, planning instruction for intervention groups, and developing assessments); 3) Novice forums are held every nine weeks and provide professional development. (Note: the IPAL data recorded at top shows figues for all class sections (not just core subject areas; core content totals are no longer listed in the IPAL report).
A31: Page 35

Sheet Private Schools
E1: School Division: | G1: ='Narrative & Detail Budget'!$A$15 -> ALBEMARLE COUNTY PUBLIC SCHOOLS | W1: Division Number: | Z1: ='Narrative & Detail Budget'!$I$15 -> 2
A2: J. PRIVATE SCHOOL PARTICIPATION
A4: Each year, the school division must contact all eligible private (nonprofit) schools and engage in meaningful consultation on the availability of equitable services funded by Title II, Part A. (ESEA Section 8501 and Title VIII, Uniform Provisions, Part F, Subpart 1).
A5: 1. Are there private nonprofit schools in your school division’s attendance area?
C6: X | D6: Yes (If yes, complete the remainder of this page.) | M6: No (If no, it is not necessary to complete the rest of this page.)
A8: 2. Place an "X" in the appropriate block(s) to indicate how private schools in the division were notified on the availability of equitable services funded by Title II, Part A. (Copies of the notification must be kept on file for monitoring purposes.)
C10: Regular Mail | J10: X | K10: Certified Mail
C12: Telephone Calls | K12: Meetings
C14: Visits to the Private School | K14: Other (Please specify)
A16: 3. What is the public school division's projected K-12 enrollment for the 2018-2019 school year? | L16: 13700
A18: 4. Determining Set-Asides from Title IIA Budget (These fields will calculate automatically once enrollment figures have been entered.)
B19: a. Proposed Budget | L19: =SUM('Summary Budget'!G15+'Summary Budget'!G20+'Summary Budget'!G26+'Summary Budget'!G30+'Summary Budget'!G38+'Summary Budget'!G42+'Summary Budget'!G47) -> 283835.02
B20: b. Amount of funds allocated for administration | L20: =SUM('Summary Budget'!G8+'Summary Budget'!G16+'Summary Budget'!G35+'Summary Budget'!G39) -> 0
B21: c. Amount to use for set-aside calculations | L21: =L19-L20 -> 283835.02
A23: 5. Determining additional set-asides as a result of Transferability. These fields will calculate automatically once budget and enrollment figures have been entered.
B24: a. Proposed Budget | L24: =SUM(Transferability!J13) -> 42505.36
B25: b. Amount of funds allocated for administration | L25: =SUM(Transferability!J16+Transferability!J29+Transferability!J40+Transferability!J66+Transferability!J76) -> 0
B26: c. Amount to use for set-aside calculations | L26: =L24-L25 -> 42505.36
A28: 6. Complete the chart below: • In Column A, list all eligible private schools in the geographic boundaries of the school division. • In column B, indicate the participation status of the listed private school(s) for the 2018-2019 award year, as a result of consultation. • In column C, enter the K-12 enrollment of private schools participating in services for the 2018-2019 award year. • Columns D and E will automatically calculate the value of services for the 2018-2019 award year. • In Column F, indicate the method of notification for each private school.
A30: 7. For the 2018-2019 award year, enter the estimated private school-set aside (Cell J93) onto the Summary Budget Tab under the “Budget for 2018-2019” column in the appropriate object codes on the “Private School Set-Aside” lines. On the Budget Detail pages, list the amounts in the appropriate object codes in the “Private School Set-Aside for 2017-2018” lines.
F31: Value of services for participating private schools – from Title IIA 2018-2019 budget | I31: Value of additional services for participating private schools - from 2018-2019 TRANSFERABILITY | M31: Total Value of Services for Public Schools from 2018-2019 allocation | R31: Total Value of additional services for Public Schools from 2018-2019 TRANSFERABITY
F32: =J93 -> 20508.69956 | I32: =L93 -> 3071.254765 | M32: =L21-J93 -> 263326.3204 | R32: =L26-L93 -> 39434.10523
A34: A | F34: B | H34: C | J34: D | L34: E | N34: F
A35: Name of each Private School | F35: Participation Status for 2017-2018 award year? (Yes/No) | H35: K-12 Enrollment | J35: Estimated Value of Services from 2018-2019 Title IIA budget, per school (calculated field) | L35: Estimated Value of additional services from Transferability funds | N35: Method of Notification (for non-participating schools only)
A36: Charlottesville Catholic School | F36: Yes | H36: 300 | J36: =IF(F36="Yes",H36*$F$93,0) -> 5766.269791 | L36: =IF(F36="Yes",H36*$F$96,0) -> 863.5205526
A37: Charlottesville Waldorf School | F37: Yes | H37: 129 | J37: =IF(F37="Yes",H37*$F$93,0) -> 2479.49601 | L37: =IF(F37="Yes",H37*$F$96,0) -> 371.3138376
A38: The Covenant School | F38: Yes | H38: 528 | J38: 10148.63483 | L38: 1519.796173
A39: Little Keswick School | F39: Yes | H39: 30 | J39: 576.6269791 | L39: 86.35205526
A40: Free Union Country School | F40: Yes | H40: 67 | J40: 1287.800253 | L40: 192.8529234
A41: University Montessori School | F41: Yes | H41: 13 | J41: 249.8716909 | L41: 37.41922395
A42: Miller School of Albemarle | F42: No | J42: 0 | L42: 0 | N42: Certified Mail
A43: St. Anne's Belfield School | F43: No | J43: 0 | L43: 0 | N43: Certified Mail
A44: Tandem Friends School | F44: No | J44: 0 | L44: 0 | N44: Certified Mail
A45: The Peabody School | F45: No | J45: 0 | L45: 0 | N45: Certified Mail
A46: Community Christian Academy | F46: No | J46: 0 | L46: 0 | N46: Certified Mail
A47: Field School of Charlottesville | F47: No | J47: 0 | L47: 0 | N47: Certified Mail
A48: Mountaintop Montessori School | F48: No | J48: 0 | L48: 0 | N48: Certified Mail
J49: 0 | L49: 0
J50: 0 | L50: 0
J51: 0 | L51: 0
J52: 0 | L52: 0
J53: 0 | L53: 0
J54: 0 | L54: 0
J55: 0 | L55: 0
J56: 0 | L56: 0
J57: 0 | L57: 0
J58: 0 | L58: 0
J59: 0 | L59: 0
J60: 0 | L60: 0
J61: 0 | L61: 0
J62: 0 | L62: 0
J63: 0 | L63: 0
J64: 0 | L64: 0
J65: 0 | L65: 0
J66: 0 | L66: 0
J67: 0 | L67: 0
J68: 0 | L68: 0
J69: 0 | L69: 0
J70: 0 | L70: 0
J71: 0 | L71: 0
J72: 0 | L72: 0
J73: 0 | L73: 0
J74: 0 | L74: 0
J75: 0 | L75: 0
J76: 0 | L76: 0
J77: 0 | L77: 0
J78: 0 | L78: 0
J79: 0 | L79: 0
J80: 0 | L80: 0
J81: 0 | L81: 0
J82: 0 | L82: 0
J83: 0 | L83: 0
J84: 0 | L84: 0
J85: 0 | L85: 0
J86: 0 | L86: 0
J87: 0 | L87: 0
J88: 0 | L88: 0
J89: 0 | L89: 0
J90: 0 | L90: 0
J91: 0 | L91: 0
J92: =IF(F92="Yes",H92*$F$93,0) -> 0 | L92: =IF(F92="Yes",H92*$F$96,0) -> 0
A93: Per Pupil Expenditure (calculated field): | F93: =IF(ISERROR(SUM(L21)/(SUM(L16)+SUMIF(F36:G92,"Yes",H36:I92))),0,SUM(L21)/(SUM(L16)+SUMIF(F36:G92,"Yes",H36:I92))) -> 19.2208993 | H93: Total Private school set-asides | J93: =SUM(J36:K92) -> 20508.69956 | L93: =SUM(L36:M92) -> 3071.254765
A96: Per Pupil Expenditure for Transferability funds (calculated field): | F96: =IF(ISERROR(SUM(L26)/(SUM(L16)+SUMIF(F36:G92,"Yes",H36:I92))),0,SUM(L26)/(SUM(L16)+SUMIF(F36:G92,"Yes",H36:I92))) -> 2.878401842 | J96: Use this figure for private school set-asides in 2018-2019 budget | L96: Use this figure for private school set-asides in 2018-2019 budget Transferability
A99: Page 38

Sheet Sheet1 (hidden)
A1: Title IV, Part A, Transferability | C1: Yes
C2: No

Sheet Eisenhower (hidden)
A1: Division | B1: Payee Code | C1: Eisenhower 2001-02 Allocation
A2: Accomack County Public Schools | B2: 1 | C2: 40219
A3: Albemarle County Public Schools | B3: 2 | C3: 51797
A4: Alleghany County Public Schools | B4: 3 | C4: 17117
A5: Amelia County Public Schools | B5: 4 | C5: 9570
A6: Amherst County Public Schools | B6: 5 | C6: 23328
A7: Appomattox County Public Schools | B7: 6 | C7: 13233
A8: Arlington City Public Schools | B8: 7 | C8: 95426
A9: Augusta County Public Schools | B9: 8 | C9: 46299
A10: Bath County Public Schools | B10: 9 | C10: 4106
A11: Bedford City Public Schools | B11: 10 | C11: 45969
A12: Bland County Public Schools | B12: 11 | C12: 4276
A13: Botetourt County Public Schools | B13: 12 | C13: 17978
A14: Brunswick County Public Schools | B14: 13 | C14: 20999
A15: Buchanan County Public Schools | B15: 14 | C15: 45671
A16: Buckingham County Public Schools | B16: 15 | C16: 16039
A17: Campbell County Public Schools | B17: 16 | C17: 43611
A18: Caroline County Public Schools | B18: 17 | C18: 21130
A19: Carroll County Public Schools | B19: 18 | C19: 24846
A20: Charles City County Public Schools | B20: 19 | C20: 6554
A21: Charlotte County Public Schools | B21: 20 | C21: 14605
A22: Chesterfield County Public Schools | B22: 21 | C22: 203846
A23: Clarke County Public Schools | B23: 22 | C23: 9598
A24: Craig County Public Schools | B24: 23 | C24: 3793
A25: Culpeper County Public Schools | B25: 24 | C25: 28401
A26: Cumberland County Public Schools | B26: 25 | C26: 9657
A27: Dickenson County Public Schools | B27: 26 | C27: 30316
A28: Dinwiddie County Public Schools | B28: 27 | C28: 23432
A29: Essex County Public Schools | B29: 28 | C29: 9550
A30: Fairfax City Public Schools | B30: 29 | C30: 598091
A31: Fauquier County Public Schools | B31: 30 | C31: 41272
A32: Floyd County Public Schools | B32: 31 | C32: 11053
A33: Fluvanna County Public Schools | B33: 32 | C33: 14485
A34: Franklin County Public Schools | B34: 33 | C34: 38410
A35: Frederick County Public Schools | B35: 34 | C35: 44378
A36: Giles County Public Schools | B36: 35 | C36: 14946
A37: Gloucester County Public Schools | B37: 36 | C37: 32788
A38: Goochland County Public Schools | B38: 37 | C38: 8628
A39: Grayson County Public Schools | B39: 38 | C39: 16690
A40: Greene County Public Schools | B40: 39 | C40: 14718
A41: Greensville County Public Schools | B41: 40 | C41: 20374
A42: Halifax County Public Schools | B42: 41 | C42: 38749
A43: Hanover County Public Schools | B43: 42 | C43: 57659
A44: Henrico County Public Schools | B44: 43 | C44: 178303
A45: Henry County Public Schools | B45: 44 | C45: 52795
A46: Highland County Public Schools | B46: 45 | C46: 1935
A47: Isle of Wight County Public Schools | B47: 46 | C47: 27152
A48: King George County Public Schools | B48: 48 | C48: 13419
A49: King and Queen County Public Schools | B49: 49 | C49: 6912
A50: King William County Public Schools | B50: 50 | C50: 8380
A51: Lancaster County Public Schools | B51: 51 | C51: 10507
A52: Lee County Public Schools | B52: 52 | C52: 41263
A53: Loudoun County Public Schools | B53: 53 | C53: 96953
A54: Louisa County Public Schools | B54: 54 | C54: 23738
A55: Lunenburg County Public Schools | B55: 55 | C55: 15190
A56: Madison County Public Schools | B56: 56 | C56: 11853
A57: Mathews County Public Schools | B57: 57 | C57: 7014
A58: Mecklenburg County Public Schools | B58: 58 | C58: 32938
A59: Middlesex County Public Schools | B59: 59 | C59: 8368
A60: Montgomery County Public Schools | B60: 60 | C60: 54140
A61: Nelson County Public Schools | B61: 62 | C61: 13815
A62: New Kent County Public Schools | B62: 63 | C62: 9077
A63: Northampton County Public Schools | B63: 65 | C63: 21346
A64: Northumberland County Public Schools | B64: 66 | C64: 10384
A65: Nottoway County Public Schools | B65: 67 | C65: 18218
A66: Orange County Public Schools | B66: 68 | C66: 18979
A67: Page County Public Schools | B67: 69 | C67: 21063
A68: Patrick County Public Schools | B68: 70 | C68: 16611
A69: Pittsylvania County Public Schools | B69: 71 | C69: 52751
A70: Powhatan County Public Schools | B70: 72 | C70: 13446
A71: Prince Edward County Public Schools | B71: 73 | C71: 21122
A72: Prince George County Public Schools | B72: 74 | C72: 242268
A73: Prince William County Public Schools | B73: 75 | C73: 196730
A74: Pulaski County Public Schools | B74: 77 | C74: 33374
A75: Rappahannock County Public Schools | B75: 78 | C75: 5138
A76: Richmond County Public Schools | B76: 79 | C76: 8129
A77: Roanoke County Public Schools | B77: 80 | C77: 51084
A78: Rockbridge County Public Schools | B78: 81 | C78: 16141
A79: Rockingham County Public Schools | B79: 82 | C79: 47793
A80: Russell County Public Schools | B80: 83 | C80: 38558
A81: Scott County Public Schools | B81: 84 | C81: 25851
A82: Shenandoah County Public Schools | B82: 85 | C82: 29778
A83: Smyth County Public Schools | B83: 86 | C83: 36172
A84: Southampton County Public Schools | B84: 87 | C84: 18229
A85: Spotsylvania County Public Schools | B85: 88 | C85: 69801
A86: Stafford County Public Schools | B86: 89 | C86: 72619
A87: Surry County Public Schools | B87: 90 | C87: 7504
A88: Sussex County Public Schools | B88: 91 | C88: 12362
A89: Tazewell County Public Schools | B89: 92 | C89: 60941
A90: Warren County Public Schools | B90: 93 | C90: 25597
A91: Washington County Public Schools | B91: 94 | C91: 44834
A92: Westmoreland County Public Schools | B92: 95 | C92: 14506
A93: Wise County Public Schools | B93: 96 | C93: 61108
A94: Wythe County Public Schools | B94: 97 | C94: 30649
A95: York County Public Schools | B95: 98 | C95: 46236
A96: Alexandria City Public Schools | B96: 101 | C96: 69247
A97: Bristol City Public Schools | B97: 102 | C97: 21473
A98: Buena Vista City Public Schools | B98: 103 | C98: 6888
A99: Charlottesville City Public Schools | B99: 104 | C99: 38826
A100: Colonial Heights City Public Schools | B100: 106 | C100: 12438
A101: Covington City Public Schools | B101: 107 | C101: 7236
A102: Danville City Public Schools | B102: 108 | C102: 72571
A103: Falls Church City Public Schools | B103: 109 | C103: 7301
A104: Fredericksburg City Public Schools | B104: 110 | C104: 17330
A105: Galax City Public Schools | B105: 111 | C105: 9206
A106: Hampton City Public Schools | B106: 112 | C106: 149143
A107: Harrisonburg City Public Schools | B107: 113 | C107: 25488
A108: Hopewell City Public Schools | B108: 114 | C108: 30889
A109: Lynchburg City Public Schools | B109: 115 | C109: 78002
A110: Martinsville City Public Schools | B110: 116 | C110: 18810
A111: Newport News City Public Schools | B111: 117 | C111: 230453
A112: Norfolk City Public Schools | B112: 118 | C112: 339860
A113: Norton City Public Schools | B113: 119 | C113: 6864
A114: Petersburg City Public Schools | B114: 120 | C114: 52679
A115: Portsmouth City Public Schools | B115: 121 | C115: 152072
A116: Radford City Public Schools | B116: 122 | C116: 8930
A117: Richmond City Public Schools | B117: 123 | C117: 281765
A118: Roanoke City Public Schools | B118: 124 | C118: 122107
A119: Staunton City Public Schools | B119: 126 | C119: 19574
A120: Suffolk City Public Schools | B120: 127 | C120: 79656
A121: Virginia Beach City Public Schools | B121: 128 | C121: 384961
A122: Waynesboro City Public Schools | B122: 130 | C122: 19429
A123: Williamsburg City Public Schools | B123: 131 | C123: 37910
A124: Winchester City Public Schools | B124: 132 | C124: 21654
A125: Fairfax City Public Schools | B125: 134 | C125: 10264
A126: Franklin City Public Schools | B126: 135 | C126: 13179
A127: Chesapeake City Public Schools | B127: 136 | C127: 190847
A128: Lexington City Public Schools | B128: 137 | C128: 3719
A129: Salem City Public Schools | B129: 139 | C129: 18844
A130: Poquoson City Public Schools | B130: 142 | C130: 8712
A131: Manassas City Public Schools | B131: 143 | C131: 26521
A132: Manassas Park City Public Schools | B132: 144 | C132: 7878
A133: Colonial Beach Town Public Schools | B133: 202 | C133: 3794
A134: West Point Town Public Schools | B134: 207 | C134: 3095
A135: VSDB Staunton | B135: 218 | C135: 2806
A136: VSDB Hampton | B136: 219 | C136: 1708
A137: Va Dept of Correctional Education | B137: 900 | C137: 36639

Sheet Prefills (hidden)
A1: Name | B1: Code | I1: INNOVATIVE ASSISTANCE PROGRAM AREAS | U1: Yes | W1: Yes | Z1: Title I A | AD1: Title I C | AH1: Title ID | AL1: Title IIA | AP1: Title IID | AT1: Title III | AX1: Title IV | BB1: Title V | BF1: Title VI
A2: ACCOMACK COUNTY PUBLIC SCHOOLS | B2: 1 | U2: No | W2: No | Z2: Payee | AA2: ProjectGroupID | AB2: CONoSOLIDATED_APP_FLAG | AC2: Allocation | AD2: Payee | AE2: ProjectGroupID | AF2: CONoSOLIDATED_APP_FLAG | AG2: Allocation | AH2: Payee | AI2: ProjectGroupID | AJ2: CONoSOLIDATED_APP_FLAG | AK2: Allocation | AL2: Payee | AM2: ProjectGroupID | AN2: CONoSOLIDATED_APP_FLAG | AO2: Allocation | AP2: Payee | AQ2: ProjectGroupID | AR2: CONoSOLIDATED_APP_FLAG | AS2: Allocation | AT2: Payee | AU2: ProjectGroupID | AV2: CONoSOLIDATED_APP_FLAG | AW2: Allocation | AX2: Payee | AY2: ProjectGroupID | AZ2: CONoSOLIDATED_APP_FLAG | BA2: Allocation | BB2: Payee | BC2: ProjectGroupID | BD2: CONoSOLIDATED_APP_FLAG | BE2: Allocation | BF2: Payee | BG2: ProjectGroupID | BH2: CONoSOLIDATED_APP_FLAG | BI2: Allocation
A3: ALBEMARLE COUNTY PUBLIC SCHOOLS | B3: 2 | W3: Shared Services Only | Z3: 1 | AA3: 1 | AB3: Yes | AC3: 1786364.85 | AD3: 1 | AE3: 2 | AF3: Yes | AG3: 274686.67 | AH3: 1 | AI3: 3 | AJ3: Yes | AL3: 1 | AM3: 4 | AN3: Yes | AO3: 263725.1 | AT3: 1 | AU3: 6 | AV3: Yes | AW3: 97040.22 | BF3: 1 | BG3: 9 | BH3: Yes | BI3: 94384.84
A4: ALEXANDRIA CITY PUBLIC SCHOOLS | B4: 101 | H4: 1. | I4: 1. Recruiting, training, and hiring highly qualified teachers to reduce class size | Z4: 2 | AA4: 1 | AB4: No | AC4: 1442772.07 | AD4: 2 | AE4: 2 | AF4: No | AG4: 84026.79 | AH4: 2 | AI4: 3 | AJ4: No | AL4: 2 | AM4: 4 | AN4: No | AO4: 283835.02 | AT4: 2 | AU4: 6 | AV4: No | AW4: 103428.7 | BF4: 2 | BG4: 9 | BH4: No
A5: ALLEGHANY COUNTY PUBLIC SCHOOLS | B5: 3 | H5: 2. | I5: 2. Technology activities, including professional development | Z5: 3 | AA5: 1 | AB5: Yes | AC5: 483805.33 | AD5: 3 | AE5: 2 | AF5: Yes | AH5: 3 | AI5: 3 | AJ5: Yes | AK5: 42166.04 | AL5: 3 | AM5: 4 | AN5: Yes | AO5: 82210.1 | AT5: 3 | AU5: 6 | AV5: Yes | AW5: 2476.63 | BF5: 3 | BG5: 9 | BH5: Yes
A6: AMELIA COUNTY PUBLIC SCHOOLS | B6: 4 | H6: 3a. | I6: 3a. Development or acquisition and use of: computer software and hardware | W6: Yes | Z6: 4 | AA6: 1 | AB6: Yes | AC6: 346908.37 | AD6: 4 | AE6: 2 | AF6: Yes | AH6: 4 | AI6: 3 | AJ6: Yes | AL6: 4 | AM6: 4 | AN6: Yes | AO6: 59004.31 | AT6: 4 | AU6: 6 | AV6: Yes | AW6: 4599.45 | BF6: 4 | BG6: 9 | BH6: Yes
A7: AMHERST COUNTY PUBLIC SCHOOLS | B7: 5 | H7: 3b. | I7: 3b. Development or acquisition and use of: instructional/reference materials and academic assessments | W7: No | Z7: 5 | AA7: 1 | AB7: No | AC7: 885018.8 | AD7: 5 | AE7: 2 | AF7: No | AH7: 5 | AI7: 3 | AJ7: No | AL7: 5 | AM7: 4 | AN7: No | AO7: 155373.91 | AT7: 5 | AU7: 6 | AV7: No | AW7: 943.48 | BF7: 5 | BG7: 9 | BH7: No
A8: APPOMATTOX COUNTY PUBLIC SCHOOLS | B8: 6 | H8: 3c. | I8: 3c. Development or acquisition and use of: library/media services and materials | Z8: 6 | AA8: 1 | AB8: No | AC8: 567155.55 | AD8: 6 | AE8: 2 | AF8: No | AH8: 6 | AI8: 3 | AJ8: No | AL8: 6 | AM8: 4 | AN8: No | AO8: 83921.65 | AT8: 6 | AU8: 6 | AV8: No | AW8: 353.8 | BF8: 6 | BG8: 9 | BH8: No | BI8: 42396.28
A9: ARLINGTON COUNTY PUBLIC SCHOOLS | B9: 7 | H9: 4. | I9: 4. Educational reform projects, including magnet schools | Z9: 7 | AA9: 1 | AB9: Yes | AC9: 1938429.68 | AD9: 7 | AE9: 2 | AF9: Yes | AH9: 7 | AI9: 3 | AJ9: Yes | AL9: 7 | AM9: 4 | AN9: Yes | AO9: 467773.18 | AT9: 7 | AU9: 6 | AV9: Yes | AW9: 588170.92 | BF9: 7 | BG9: 9 | BH9: Yes
A10: AUGUSTA COUNTY PUBLIC SCHOOLS | B10: 8 | H10: 5. | I10: 5. Programs to improve the academic achievement of educationally disadvantaged elementary and secondary students, including dropout prevention | Z10: 8 | AA10: 1 | AB10: No | AC10: 1232008.89 | AD10: 8 | AE10: 2 | AF10: No | AH10: 8 | AI10: 3 | AJ10: No | AL10: 8 | AM10: 4 | AN10: No | AO10: 245993.49 | AT10: 8 | AU10: 6 | AV10: No | AW10: 20756.5 | BF10: 8 | BG10: 9 | BH10: No
A11: BATH COUNTY PUBLIC SCHOOLS | B11: 9 | H11: 6. | I11: 6. Programs to improve the literacy skills of adults, including adult education and family literacy programs | Z11: 9 | AA11: 1 | AB11: No | AC11: 71070.41 | AD11: 9 | AE11: 2 | AF11: No | AH11: 9 | AI11: 3 | AJ11: No | AL11: 9 | AM11: 4 | AN11: No | AO11: 13096.55 | AT11: 9 | AU11: 6 | AV11: No | AW11: 1297.28 | BF11: 9 | BG11: 9 | BH11: No
A12: BEDFORD CITY PUBLIC SCHOOLS | B12: 140 | H12: 7. | I12: 7. Programs for gifted and talented children | Z12: 10 | AA12: 1 | AB12: No | AC12: 1145914.03 | AD12: 10 | AE12: 2 | AF12: No | AH12: 10 | AI12: 3 | AJ12: No | AL12: 10 | AM12: 4 | AN12: No | AO12: 264525.05 | AT12: 10 | AU12: 6 | AV12: No | AW12: 14623.9 | BF12: 10 | BG12: 9 | BH12: No
A13: BEDFORD COUNTY PUBLIC SCHOOLS | B13: 10 | H13: 8. | I13: 8. Planning, design, and initial implementation of charter schools under Title V, Part B | Z13: 11 | AA13: 1 | AB13: Yes | AC13: 145848.95 | AD13: 11 | AE13: 2 | AF13: Yes | AH13: 11 | AI13: 3 | AJ13: Yes | AL13: 11 | AM13: 4 | AN13: Yes | AO13: 22237.96 | AT13: 11 | AU13: 6 | AV13: Yes | AW13: 0 | BF13: 11 | BG13: 9 | BH13: Yes
A14: BLAND COUNTY PUBLIC SCHOOLS | B14: 11 | H14: 9. | I14: 9. School improvement programs or activities under Sections 1116 and 1117 of Title I, Part A | Z14: 12 | AA14: 1 | AB14: No | AC14: 399151.25 | AD14: 12 | AE14: 2 | AF14: No | AH14: 12 | AI14: 3 | AJ14: No | AL14: 12 | AM14: 4 | AN14: No | AO14: 87646.06 | AT14: 12 | AU14: 6 | AV14: No | AW14: 5795.58 | BF14: 12 | BG14: 9 | BH14: No
A15: BOTETOURT COUNTY PUBLIC SCHOOLS | B15: 12 | H15: 10. | I15: 10. Community service programs | Z15: 13 | AA15: 1 | AB15: Yes | AC15: 675744.96 | AD15: 13 | AE15: 2 | AF15: Yes | AH15: 13 | AI15: 3 | AJ15: Yes | AL15: 13 | AM15: 4 | AN15: Yes | AO15: 97926.36 | AT15: 13 | AU15: 6 | AV15: Yes | AW15: 3773.91 | BF15: 13 | BG15: 9 | BH15: Yes | BI15: 35353.84
A16: BRISTOL CITY PUBLIC SCHOOLS | B16: 102 | H16: 11. | I16: 11. Consumer, economic, and personal finance education | Z16: 14 | AA16: 1 | AB16: Yes | AC16: 1153736.24 | AD16: 14 | AE16: 2 | AF16: Yes | AH16: 14 | AI16: 3 | AJ16: Yes | AL16: 14 | AM16: 4 | AN16: Yes | AO16: 153805.49 | AT16: 14 | AU16: 6 | AV16: Yes | AW16: 117.93 | BF16: 14 | BG16: 9 | BH16: Yes | BI16: 59901.19
A17: BRUNSWICK COUNTY PUBLIC SCHOOLS | B17: 13 | H17: 12. | I17: 12. Public school choice | W17: 1000 | Z17: 15 | AA17: 1 | AB17: Yes | AC17: 655870.69 | AD17: 15 | AE17: 2 | AF17: Yes | AH17: 15 | AI17: 3 | AJ17: Yes | AL17: 15 | AM17: 4 | AN17: Yes | AO17: 100130.65 | AT17: 15 | AU17: 6 | AV17: Yes | AW17: 117.93 | BF17: 15 | BG17: 9 | BH17: Yes | BI17: 38227.48
A18: BUCHANAN COUNTY PUBLIC SCHOOLS | B18: 14 | H18: 13. | I18: 13. Programs to hire and support school nurses | W18: 2000 | Z18: 16 | AA18: 1 | AB18: No | AC18: 1545273.89 | AD18: 16 | AE18: 2 | AF18: No | AH18: 16 | AI18: 3 | AJ18: No | AL18: 16 | AM18: 4 | AN18: No | AO18: 225079.8 | AT18: 16 | AU18: 6 | AV18: No | AW18: 15921.18 | BF18: 16 | BG18: 9 | BH18: No
A19: BUCKINGHAM COUNTY PUBLIC SCHOOLS | B19: 15 | H19: 14. | I19: 14. School-based mental health services | W19: 3000 | Z19: 17 | AA19: 1 | AB19: Yes | AC19: 814710.69 | AD19: 17 | AE19: 2 | AF19: Yes | AH19: 17 | AI19: 3 | AJ19: Yes | AL19: 17 | AM19: 4 | AN19: Yes | AO19: 148143.31 | AT19: 17 | AU19: 6 | AV19: Yes | AW19: 6722.28 | BF19: 17 | BG19: 9 | BH19: Yes
A20: BUENA VISTA CITY PUBLIC SCHOOLS | B20: 103 | H20: 15. | I20: 15. Alternative educational programs | W20: 4000 | Z20: 18 | AA20: 1 | AB20: No | AC20: 1092840.39 | AD20: 18 | AE20: 2 | AF20: No | AG20: 44652.04 | AH20: 18 | AI20: 3 | AJ20: No | AL20: 18 | AM20: 4 | AN20: No | AO20: 158990.37 | AT20: 18 | AU20: 6 | AV20: No | AW20: 12501.07 | BF20: 18 | BG20: 9 | BH20: No | BI20: 81089.21
A21: CAMPBELL COUNTY PUBLIC SCHOOLS | B21: 16 | H21: 16. | I21: 16. Prekindergarten programs | W21: 5000 | Z21: 19 | AA21: 1 | AB21: Yes | AC21: 153655.88 | AD21: 19 | AE21: 2 | AF21: Yes | AH21: 19 | AI21: 3 | AJ21: Yes | AL21: 19 | AM21: 4 | AN21: Yes | AO21: 26595.9 | AT21: 19 | AU21: 6 | AV21: Yes | AW21: 2122.82 | BF21: 19 | BG21: 9 | BH21: Yes
A22: CAROLINE COUNTY PUBLIC SCHOOLS | B22: 17 | H22: 17. | I22: 17. Academic intervention programs jointly operated with community-based organizations | W22: 6000 | Z22: 20 | AA22: 1 | AB22: Yes | AC22: 563153.39 | AD22: 20 | AE22: 2 | AF22: Yes | AH22: 20 | AI22: 3 | AJ22: Yes | AL22: 20 | AM22: 4 | AN22: Yes | AO22: 85760.62 | AT22: 20 | AU22: 6 | AV22: Yes | AW22: 1179.35 | BF22: 20 | BG22: 9 | BH22: Yes | BI22: 37438.24
A23: CARROLL COUNTY PUBLIC SCHOOLS | B23: 18 | H23: 18. | I23: 18. CPR training | W23: 8000 | Z23: 21 | AA23: 1 | AB23: No | AC23: 5714631.13 | AD23: 21 | AE23: 2 | AF23: No | AH23: 21 | AI23: 3 | AJ23: No | AL23: 21 | AM23: 4 | AN23: No | AO23: 1100464.34 | AT23: 21 | AU23: 6 | AV23: No | AW23: 380345.9 | BF23: 21 | BG23: 9 | BH23: No
A24: CHARLES CITY COUNTY PUBLIC SCHOOLS | B24: 19 | H24: 19. | I24: 19. Smaller learning communities | Z24: 22 | AA24: 1 | AB24: No | AC24: 176849.62 | AD24: 22 | AE24: 2 | AF24: No | AH24: 22 | AI24: 3 | AJ24: No | AL24: 22 | AM24: 4 | AN24: No | AO24: 41933.28 | AT24: 22 | AU24: 6 | AV24: No | AW24: 1651.09 | BF24: 22 | BG24: 9 | BH24: No
A25: CHARLOTTE COUNTY PUBLIC SCHOOLS | B25: 20 | H25: 20. | I25: 20. Activities that encourage and expand improvements throughout the LEA area that are designed to advance student academic achievement | Z25: 23 | AA25: 1 | AB25: Yes | AC25: 164891.08 | AD25: 23 | AE25: 2 | AF25: Yes | AH25: 23 | AI25: 3 | AJ25: Yes | AL25: 23 | AM25: 4 | AN25: Yes | AO25: 25560.89 | AT25: 23 | AU25: 6 | AV25: Yes | AW25: 707.61 | BF25: 23 | BG25: 9 | BH25: Yes
A26: CHARLOTTESVILLE CITY PUBLIC SCHOOLS | B26: 104 | H26: 21. | I26: 21. Parental and community involvement | Z26: 24 | AA26: 1 | AB26: No | AC26: 1396949.73 | AD26: 24 | AE26: 2 | AF26: No | AH26: 24 | AI26: 3 | AJ26: No | AK26: 75055.02 | AL26: 24 | AM26: 4 | AN26: No | AO26: 227111.43 | AT26: 24 | AU26: 6 | AV26: No | AW26: 54485.81 | BF26: 24 | BG26: 9 | BH26: No
A27: CHESAPEAKE CITY PUBLIC SCHOOLS | B27: 136 | H27: 22. | I27: 22. Activities that expand learning through best-practice models | Z27: 25 | AA27: 1 | AB27: Yes | AC27: 395240.36 | AD27: 25 | AE27: 2 | AF27: Yes | AH27: 25 | AI27: 3 | AJ27: Yes | AL27: 25 | AM27: 4 | AN27: Yes | AO27: 65503.86 | AT27: 25 | AU27: 6 | AV27: Yes | AW27: 3420.11 | BF27: 25 | BG27: 9 | BH27: Yes | BI27: 24871.14
A28: CHESTERFIELD COUNTY PUBLIC SCHOOLS | B28: 21 | H28: 23. | I28: 23. Same-gender schools and classrooms (consistent with applicable law)** | Z28: 26 | AA28: 1 | AB28: No | AC28: 667387.98 | AD28: 26 | AE28: 2 | AF28: No | AH28: 26 | AI28: 3 | AJ28: No | AL28: 26 | AM28: 4 | AN28: No | AO28: 109237.07 | AT28: 26 | AU28: 6 | AV28: No | AW28: 0 | BF28: 26 | BG28: 9 | BH28: No | BI28: 42396.28
A29: CLARKE COUNTY PUBLIC SCHOOLS | B29: 22 | H29: 24. | I29: 24. Service learning activities | Z29: 27 | AA29: 1 | AB29: Yes | AC29: 623179.69 | AD29: 27 | AE29: 2 | AF29: Yes | AH29: 27 | AI29: 3 | AJ29: Yes | AL29: 27 | AM29: 4 | AN29: Yes | AO29: 123539.85 | AT29: 27 | AU29: 6 | AV29: Yes | AW29: 7901.62 | BF29: 27 | BG29: 9 | BH29: Yes
A30: CLIFTON FORGE CITY | B30: 105 | H30: 25. | I30: 25. School safety programs | Z30: 28 | AA30: 1 | AB30: No | AC30: 445025.3 | AD30: 28 | AE30: 2 | AF30: No | AH30: 28 | AI30: 3 | AJ30: No | AL30: 28 | AM30: 4 | AN30: No | AO30: 69159.55 | AT30: 28 | AU30: 6 | AV30: No | AW30: 4127.71 | BF30: 28 | BG30: 9 | BH30: No | BI30: 29444.67
A31: COLONIAL BEACH TOWN PUBLIC SCHOOLS | B31: 202 | H31: 26. | I31: 26. Programs that use research-based cognitive and perceptual development approaches | Z31: 29 | AA31: 1 | AB31: No | AC31: 19058305.99 | AD31: 29 | AE31: 2 | AF31: No | AH31: 29 | AI31: 3 | AJ31: No | AL31: 29 | AM31: 4 | AN31: No | AO31: 3050358.98 | AT31: 29 | AU31: 6 | AV31: No | AW31: 4500516.19 | BF31: 29 | BG31: 9 | BH31: No
A32: COLONIAL HEIGHTS CITY PUBLIC SCHOOLS | B32: 106 | H32: 27. | I32: 27. Supplemental educational services as defined in Section 1116(e) of Title I, Part A | Z32: 30 | AA32: 1 | AB32: Yes | AC32: 750182.79 | AD32: 30 | AE32: 2 | AF32: Yes | AH32: 30 | AI32: 3 | AJ32: Yes | AL32: 30 | AM32: 4 | AN32: Yes | AO32: 191632.46 | AT32: 30 | AU32: 6 | AV32: Yes | AW32: 58023.85 | BF32: 30 | BG32: 9 | BH32: Yes
A33: COVINGTON CITY PUBLIC SCHOOLS | B33: 107 | I33: Program Administration | Z33: 31 | AA33: 1 | AB33: Yes | AC33: 432347.3 | AD33: 31 | AE33: 2 | AF33: Yes | AH33: 31 | AI33: 3 | AJ33: Yes | AL33: 31 | AM33: 4 | AN33: Yes | AO33: 72810.28 | AT33: 31 | AU33: 6 | AV33: Yes | AW33: 6014.67 | BF33: 31 | BG33: 9 | BH33: Yes
A34: CRAIG COUNTY PUBLIC SCHOOLS | B34: 23 | I34: Indirect Costs (not to exceed approved rate) | Z34: 32 | AA34: 1 | AB34: Yes | AC34: 334692.04 | AD34: 32 | AE34: 2 | AF34: Yes | AH34: 32 | AI34: 3 | AJ34: Yes | AL34: 32 | AM34: 4 | AN34: Yes | AO34: 78254.52 | AT34: 32 | AU34: 6 | AV34: Yes | AW34: 6132.6 | BF34: 32 | BG34: 9 | BH34: Yes
A35: CULPEPER COUNTY PUBLIC SCHOOLS | B35: 24 | Z35: 33 | AA35: 1 | AB35: Yes | AC35: 1759978.81 | AD35: 33 | AE35: 2 | AF35: Yes | AH35: 33 | AI35: 3 | AJ35: Yes | AL35: 33 | AM35: 4 | AN35: Yes | AO35: 252546.72 | AT35: 33 | AU35: 6 | AV35: Yes | AW35: 11085.86 | BF35: 33 | BG35: 9 | BH35: Yes
A36: CUMBERLAND COUNTY PUBLIC SCHOOLS | B36: 25 | Z36: 34 | AA36: 1 | AB36: No | AC36: 1466937.97 | AD36: 34 | AE36: 2 | AF36: No | AH36: 34 | AI36: 3 | AJ36: No | AK36: 65468.33 | AL36: 34 | AM36: 4 | AN36: No | AO36: 273462.96 | AT36: 34 | AU36: 6 | AV36: No | AW36: 64274.39 | BF36: 34 | BG36: 9 | BH36: No
A37: DANVILLE CITY PUBLIC SCHOOLS | B37: 108 | Z37: 35 | AA37: 1 | AB37: No | AC37: 445027.2 | AD37: 35 | AE37: 2 | AF37: No | AH37: 35 | AI37: 3 | AJ37: No | AL37: 35 | AM37: 4 | AN37: No | AO37: 74557.68 | AT37: 35 | AU37: 6 | AV37: No | AW37: 471.74 | BF37: 35 | BG37: 9 | BH37: No
A38: DICKENSON COUNTY PUBLIC SCHOOLS | B38: 26 | Z38: 36 | AA38: 1 | AB38: Yes | AC38: 667366.41 | AD38: 36 | AE38: 2 | AF38: Yes | AH38: 36 | AI38: 3 | AJ38: Yes | AL38: 36 | AM38: 4 | AN38: Yes | AO38: 140405.93 | AT38: 36 | AU38: 6 | AV38: Yes | AW38: 5626.14 | BF38: 36 | BG38: 9 | BH38: Yes
A39: DINWIDDIE COUNTY PUBLIC SCHOOLS | B39: 27 | Z39: 37 | AA39: 1 | AB39: No | AC39: 259489.63 | AD39: 37 | AE39: 2 | AF39: No | AH39: 37 | AI39: 3 | AJ39: No | AK39: 75455.02 | AL39: 37 | AM39: 4 | AN39: No | AO39: 57425.82 | AT39: 37 | AU39: 6 | AV39: No | AW39: 4481.52 | BF39: 37 | BG39: 9 | BH39: No
A40: EMPORIA CITY PUBLIC SCHOOLS | B40: 138 | Z40: 38 | AA40: 1 | AB40: No | AC40: 579299.45 | AD40: 38 | AE40: 2 | AF40: No | AH40: 38 | AI40: 3 | AJ40: No | AL40: 38 | AM40: 4 | AN40: No | AO40: 92266.73 | AT40: 38 | AU40: 6 | AV40: No | AW40: 2948.37 | BF40: 38 | BG40: 9 | BH40: No | BI40: 34261.05
A41: ESSEX COUNTY PUBLIC SCHOOLS | B41: 28 | Z41: 39 | AA41: 1 | AB41: Yes | AC41: 347914.44 | AD41: 39 | AE41: 2 | AF41: Yes | AH41: 39 | AI41: 3 | AJ41: Yes | AL41: 39 | AM41: 4 | AN41: Yes | AO41: 84216.74 | AT41: 39 | AU41: 6 | AV41: Yes | AW41: 10732.05 | BF41: 39 | BG41: 9 | BH41: Yes
A42: FAIRFAX CITY PUBLIC SCHOOLS | B42: 134 | Z42: 40 | AA42: 1 | AB42: Yes | AC42: 394688.88 | AD42: 40 | AE42: 2 | AF42: Yes | AH42: 40 | AI42: 3 | AJ42: Yes | AL42: 40 | AM42: 4 | AN42: Yes | AO42: 124105.72 | AT42: 40 | AU42: 6 | AV42: Yes | AW42: 11422.52 | BF42: 40 | BG42: 9 | BH42: Yes | BI42: 45674.66
A43: FAIRFAX COUNTY PUBLIC SCHOOLS | B43: 29 | Z43: 41 | AA43: 1 | AB43: Yes | AC43: 1688629.4 | AD43: 41 | AE43: 2 | AF43: Yes | AH43: 41 | AI43: 3 | AJ43: Yes | AL43: 41 | AM43: 4 | AN43: Yes | AO43: 216626.57 | AT43: 41 | AU43: 6 | AV43: Yes | AW43: 4363.58 | BF43: 41 | BG43: 9 | BH43: Yes | BI43: 101326.1
A44: FALLS CHURCH CITY PUBLIC SCHOOLS | B44: 109 | Z44: 42 | AA44: 1 | AB44: No | AC44: 1040367.33 | AD44: 42 | AE44: 2 | AF44: No | AH44: 42 | AI44: 3 | AJ44: No | AL44: 42 | AM44: 4 | AN44: No | AO44: 258104.82 | AT44: 42 | AU44: 6 | AV44: No | AW44: 18397.81 | BF44: 42 | BG44: 9 | BH44: No
A45: FAUQUIER COUNTY PUBLIC SCHOOLS | B45: 30 | Z45: 43 | AA45: 1 | AB45: No | AC45: 7349539.64 | AD45: 43 | AE45: 2 | AF45: No | AH45: 43 | AI45: 3 | AJ45: No | AL45: 43 | AM45: 4 | AN45: No | AO45: 1271320.88 | AT45: 43 | AU45: 6 | AV45: No | AW45: 337729.78 | BF45: 43 | BG45: 9 | BH45: No
A46: FLOYD COUNTY PUBLIC SCHOOLS | B46: 31 | Z46: 44 | AA46: 1 | AB46: No | AC46: 2365483.95 | AD46: 44 | AE46: 2 | AF46: No | AH46: 44 | AI46: 3 | AJ46: No | AL46: 44 | AM46: 4 | AN46: No | AO46: 340169.28 | AT46: 44 | AU46: 6 | AV46: No | AW46: 46820.06 | BF46: 44 | BG46: 9 | BH46: No | BI46: 136862.07
A47: FLUVANNA COUNTY PUBLIC SCHOOLS | B47: 32 | Z47: 45 | AA47: 1 | AB47: No | AC47: 50679.88 | AD47: 45 | AE47: 2 | AF47: No | AH47: 45 | AI47: 3 | AJ47: No | AL47: 45 | AM47: 4 | AN47: No | AO47: 8248.76 | AT47: 45 | AU47: 6 | AV47: No | AW47: 0 | BF47: 45 | BG47: 9 | BH47: No
A48: FRANKLIN CITY PUBLIC SCHOOLS | B48: 135 | Z48: 46 | AA48: 1 | AB48: No | AC48: 583674.4 | AD48: 46 | AE48: 2 | AF48: No | AH48: 46 | AI48: 3 | AJ48: No | AL48: 46 | AM48: 4 | AN48: No | AO48: 130661.49 | AT48: 46 | AU48: 6 | AV48: No | AW48: 2830.43 | BF48: 46 | BG48: 9 | BH48: No
A49: FRANKLIN COUNTY PUBLIC SCHOOLS | B49: 33 | Z49: 47 | AA49: 1 | AC49: 957773.93 | AD49: 47 | AE49: 2 | AH49: 47 | AI49: 3 | AL49: 47 | AM49: 4 | AO49: 0 | AT49: 47 | AU49: 6 | BF49: 47 | BG49: 9
A50: FREDERICK COUNTY PUBLIC SCHOOLS | B50: 34 | Z50: 48 | AA50: 1 | AB50: No | AC50: 364442.44 | AD50: 48 | AE50: 2 | AF50: No | AH50: 48 | AI50: 3 | AJ50: No | AL50: 48 | AM50: 4 | AN50: No | AO50: 87740.15 | AT50: 48 | AU50: 6 | AV50: No | AW50: 2830.43 | BF50: 48 | BG50: 9 | BH50: No
A51: FREDERICKSBURG CITY PUBLIC SCHOOLS | B51: 110 | Z51: 49 | AA51: 1 | AB51: Yes | AC51: 187432.04 | AD51: 49 | AE51: 2 | AF51: Yes | AH51: 49 | AI51: 3 | AJ51: Yes | AL51: 49 | AM51: 4 | AN51: Yes | AO51: 33029.75 | AT51: 49 | AU51: 6 | AV51: Yes | AW51: 1533.15 | BF51: 49 | BG51: 9 | BH51: Yes
A52: GALAX CITY PUBLIC SCHOOLS | B52: 111 | Z52: 50 | AA52: 1 | AB52: Yes | AC52: 207204.21 | AD52: 50 | AE52: 2 | AF52: Yes | AH52: 50 | AI52: 3 | AJ52: Yes | AL52: 50 | AM52: 4 | AN52: Yes | AO52: 47569 | AT52: 50 | AU52: 6 | AV52: Yes | AW52: 1651.09 | BF52: 50 | BG52: 9 | BH52: Yes
A53: GILES COUNTY PUBLIC SCHOOLS | B53: 35 | Z53: 51 | AA53: 1 | AB53: Yes | AC53: 359206.96 | AD53: 51 | AE53: 2 | AF53: Yes | AH53: 51 | AI53: 3 | AJ53: Yes | AL53: 51 | AM53: 4 | AN53: Yes | AO53: 50307.64 | AT53: 51 | AU53: 6 | AV53: Yes | AW53: 825.54 | BF53: 51 | BG53: 9 | BH53: Yes | BI53: 23636.68
A54: GLOUCESTER COUNTY PUBLIC SCHOOLS | B54: 36 | Z54: 52 | AA54: 1 | AB54: Yes | AC54: 1452119.85 | AD54: 52 | AE54: 2 | AF54: Yes | AH54: 52 | AI54: 3 | AJ54: Yes | AL54: 52 | AM54: 4 | AN54: Yes | AO54: 184116.73 | AT54: 52 | AU54: 6 | AV54: Yes | AW54: 117.93 | BF54: 52 | BG54: 9 | BH54: Yes | BI54: 59860.71
A55: GOOCHLAND COUNTY PUBLIC SCHOOLS | B55: 37 | Z55: 53 | AA55: 1 | AB55: Yes | AC55: 1478880.05 | AD55: 53 | AE55: 2 | AF55: Yes | AH55: 53 | AI55: 3 | AJ55: Yes | AL55: 53 | AM55: 4 | AN55: Yes | AO55: 823356.39 | AT55: 53 | AU55: 6 | AV55: Yes | AW55: 686851.48 | BF55: 53 | BG55: 9 | BH55: Yes
A56: GRAYSON COUNTY PUBLIC SCHOOLS | B56: 38 | Z56: 54 | AA56: 1 | AB56: No | AC56: 802748.47 | AD56: 54 | AE56: 2 | AF56: No | AH56: 54 | AI56: 3 | AJ56: No | AL56: 54 | AM56: 4 | AN56: No | AO56: 148215.16 | AT56: 54 | AU56: 6 | AV56: No | AW56: 6132.6 | BF56: 54 | BG56: 9 | BH56: No
A57: GREENE COUNTY PUBLIC SCHOOLS | B57: 39 | Z57: 55 | AA57: 1 | AB57: Yes | AC57: 575986.28 | AD57: 55 | AE57: 2 | AF57: Yes | AH57: 55 | AI57: 3 | AJ57: Yes | AL57: 55 | AM57: 4 | AN57: Yes | AO57: 75404.11 | AT57: 55 | AU57: 6 | AV57: Yes | AW57: 8373.36 | BF57: 55 | BG57: 9 | BH57: Yes | BI57: 28716.14
A58: GREENSVILLE COUNTY PUBLIC SCHOOLS | B58: 40 | Z58: 56 | AA58: 1 | AB58: No | AC58: 368226.52 | AD58: 56 | AE58: 2 | AF58: No | AH58: 56 | AI58: 3 | AJ58: No | AL58: 56 | AM58: 4 | AN58: No | AO58: 60250.04 | AT58: 56 | AU58: 6 | AV58: No | AW58: 471.74 | BF58: 56 | BG58: 9 | BH58: No
A59: HALIFAX COUNTY PUBLIC SCHOOLS | B59: 41 | Z59: 57 | AA59: 1 | AB59: Yes | AC59: 184826.4 | AD59: 57 | AE59: 2 | AF59: Yes | AH59: 57 | AI59: 3 | AJ59: Yes | AL59: 57 | AM59: 4 | AN59: Yes | AO59: 33305.9 | AT59: 57 | AU59: 6 | AV59: Yes | AW59: 589.67 | BF59: 57 | BG59: 9 | BH59: Yes
A60: HAMPTON CITY PUBLIC SCHOOLS | B60: 112 | Z60: 58 | AA60: 1 | AB60: Yes | AC60: 1294642.32 | AD60: 58 | AE60: 2 | AF60: Yes | AH60: 58 | AI60: 3 | AJ60: Yes | AL60: 58 | AM60: 4 | AN60: Yes | AO60: 183231.57 | AT60: 58 | AU60: 6 | AV60: Yes | AW60: 6840.21 | BF60: 58 | BG60: 9 | BH60: Yes | BI60: 86168.67
A61: HANOVER COUNTY PUBLIC SCHOOLS | B61: 42 | Z61: 59 | AA61: 1 | AB61: Yes | AC61: 299225.65 | AD61: 59 | AE61: 2 | AF61: Yes | AH61: 59 | AI61: 3 | AJ61: Yes | AL61: 59 | AM61: 4 | AN61: Yes | AO61: 47606.13 | AT61: 59 | AU61: 6 | AV61: Yes | AW61: 353.8 | BF61: 59 | BG61: 9 | BH61: Yes | BI61: 21774.89
A62: HARRISONBURG CITY PUBLIC SCHOOLS | B62: 113 | Z62: 60 | AA62: 1 | AB62: No | AC62: 1827644.08 | AD62: 60 | AE62: 2 | AF62: No | AH62: 60 | AI62: 3 | AJ62: No | AL62: 60 | AM62: 4 | AN62: No | AO62: 291380.2 | AT62: 60 | AU62: 6 | AV62: No | AW62: 31210.81 | BF62: 60 | BG62: 9 | BH62: No
A63: HENRICO COUNTY PUBLIC SCHOOLS | B63: 43 | Z63: 62 | AA63: 1 | AB63: No | AC63: 436338.29 | AD63: 62 | AE63: 2 | AF63: No | AH63: 62 | AI63: 3 | AJ63: No | AL63: 62 | AM63: 4 | AN63: No | AO63: 76468.34 | AT63: 62 | AU63: 6 | AV63: No | AW63: 4363.58 | BF63: 62 | BG63: 9 | BH63: No | BI63: 36912.08
A64: HENRY COUNTY PUBLIC SCHOOLS | B64: 44 | Z64: 63 | AA64: 1 | AB64: Yes | AC64: 235524.03 | AD64: 63 | AE64: 2 | AF64: Yes | AH64: 63 | AI64: 3 | AJ64: Yes | AL64: 63 | AM64: 4 | AN64: Yes | AO64: 58017.16 | AT64: 63 | AU64: 6 | AV64: Yes | AW64: 2358.69 | BF64: 63 | BG64: 9 | BH64: Yes
A65: HIGHLAND COUNTY PUBLIC SCHOOLS | B65: 45 | Z65: 65 | AA65: 1 | AB65: Yes | AC65: 725875.23 | AD65: 65 | AE65: 2 | AF65: Yes | AG65: 146597.21 | AH65: 65 | AI65: 3 | AJ65: Yes | AL65: 65 | AM65: 4 | AN65: Yes | AO65: 91263.57 | AT65: 65 | AU65: 6 | AV65: Yes | AW65: 17808.13 | BF65: 65 | BG65: 9 | BH65: Yes | BI65: 30092.25
A66: HOPEWELL CITY PUBLIC SCHOOLS | B66: 114 | Z66: 66 | AA66: 1 | AB66: Yes | AC66: 415720.58 | AD66: 66 | AE66: 2 | AF66: Yes | AH66: 66 | AI66: 3 | AJ66: Yes | AL66: 66 | AM66: 4 | AN66: Yes | AO66: 64305.05 | AT66: 66 | AU66: 6 | AV66: Yes | AW66: 2476.63 | BF66: 66 | BG66: 9 | BH66: Yes | BI66: 26834.11
A67: ISLE OF WIGHT COUNTY PUBLIC SCHOOLS | B67: 46 | Z67: 67 | AA67: 1 | AB67: Yes | AC67: 712107.14 | AD67: 67 | AE67: 2 | AF67: Yes | AG67: 16791.84 | AH67: 67 | AI67: 3 | AJ67: Yes | AL67: 67 | AM67: 4 | AN67: Yes | AO67: 101057.96 | AT67: 67 | AU67: 6 | AV67: Yes | AW67: 9906.51 | BF67: 67 | BG67: 9 | BH67: Yes | BI67: 41060.65
A68: JAMES CITY COUNTY PUBLIC SCHOOLS | B68: 47 | Z68: 68 | AA68: 1 | AB68: Yes | AC68: 711907.43 | AD68: 68 | AE68: 2 | AF68: Yes | AH68: 68 | AI68: 3 | AJ68: Yes | AL68: 68 | AM68: 4 | AN68: Yes | AO68: 144079.71 | AT68: 68 | AU68: 6 | AV68: Yes | AW68: 15657.33 | BF68: 68 | BG68: 9 | BH68: Yes
A69: JAMES MADISON UNIVERSITY | B69: 871 | Z69: 69 | AA69: 1 | AB69: Yes | AC69: 743761.79 | AD69: 69 | AE69: 2 | AF69: Yes | AH69: 69 | AI69: 3 | AJ69: Yes | AL69: 69 | AM69: 4 | AN69: Yes | AO69: 128671.14 | AT69: 69 | AU69: 6 | AV69: Yes | AW69: 2004.89 | BF69: 69 | BG69: 9 | BH69: Yes
A70: KING AND QUEEN COUNTY PUBLIC SCHOOLS | B70: 49 | Z70: 70 | AA70: 1 | AB70: No | AC70: 669452.26 | AD70: 70 | AE70: 2 | AF70: No | AH70: 70 | AI70: 3 | AJ70: No | AL70: 70 | AM70: 4 | AN70: No | AO70: 95385.99 | AT70: 70 | AU70: 6 | AV70: No | AW70: 8609.23 | BF70: 70 | BG70: 9 | BH70: No | BI70: 49297.06
A71: KING GEORGE COUNTY PUBLIC SCHOOLS | B71: 48 | Z71: 71 | AA71: 1 | AB71: No | AC71: 1936344.77 | AD71: 71 | AE71: 2 | AF71: No | AH71: 71 | AI71: 3 | AJ71: No | AL71: 71 | AM71: 4 | AN71: No | AO71: 378609.24 | AT71: 71 | AU71: 6 | AV71: No | AW71: 15095.64 | BF71: 71 | BG71: 9 | BH71: No
A72: KING WILLIAM COUNTY PUBLIC SCHOOLS | B72: 50 | Z72: 72 | AA72: 1 | AB72: No | AC72: 299983.23 | AD72: 72 | AE72: 2 | AF72: No | AH72: 72 | AI72: 3 | AJ72: No | AL72: 72 | AM72: 4 | AN72: No | AO72: 66627.61 | AT72: 72 | AU72: 6 | AV72: No | AW72: 4000.8 | BF72: 72 | BG72: 9 | BH72: No
A73: LANCASTER COUNTY PUBLIC SCHOOLS | B73: 51 | Z73: 73 | AA73: 1 | AB73: Yes | AC73: 821866.06 | AD73: 73 | AE73: 2 | AF73: Yes | AH73: 73 | AI73: 3 | AJ73: Yes | AL73: 73 | AM73: 4 | AN73: Yes | AO73: 124174.06 | AT73: 73 | AU73: 6 | AV73: Yes | AW73: 1297.28 | BF73: 73 | BG73: 9 | BH73: Yes | BI73: 41607.04
A74: LEE COUNTY PUBLIC SCHOOLS | B74: 52 | Z74: 74 | AA74: 1 | AB74: Yes | AC74: 595755.54 | AD74: 74 | AE74: 2 | AF74: Yes | AH74: 74 | AI74: 3 | AJ74: Yes | AL74: 74 | AM74: 4 | AN74: Yes | AO74: 128095.55 | AT74: 74 | AU74: 6 | AV74: Yes | AW74: 7901.62 | BF74: 74 | BG74: 9 | BH74: Yes
A75: LEXINGTON CITY PUBLIC SCHOOLS | B75: 137 | Z75: 75 | AA75: 1 | AB75: No | AC75: 9359215.49 | AD75: 75 | AE75: 2 | AF75: No | AH75: 75 | AI75: 3 | AJ75: No | AK75: 83222.45 | AL75: 75 | AM75: 4 | AN75: No | AO75: 1536031.75 | AT75: 75 | AU75: 6 | AV75: No | AW75: 1673669.62 | BF75: 75 | BG75: 9 | BH75: No
A76: LOUDOUN COUNTY PUBLIC SCHOOLS | B76: 53 | Z76: 77 | AA76: 1 | AB76: No | AC76: 1035194.35 | AD76: 77 | AE76: 2 | AF76: No | AH76: 77 | AI76: 3 | AJ76: No | AL76: 77 | AM76: 4 | AN76: No | AO76: 155764.43 | AT76: 77 | AU76: 6 | AV76: No | AW76: 2004.89 | BF76: 77 | BG76: 9 | BH76: No
A77: LOUISA COUNTY PUBLIC SCHOOLS | B77: 54 | Z77: 78 | AA77: 1 | AB77: Yes | AC77: 168077.55 | AD77: 78 | AE77: 2 | AF77: Yes | AH77: 78 | AI77: 3 | AJ77: Yes | AL77: 78 | AM77: 4 | AN77: Yes | AO77: 25861.71 | AT77: 78 | AU77: 6 | AV77: Yes | AW77: 1297.28 | BF77: 78 | BG77: 9 | BH77: Yes
A78: LUNENBURG COUNTY PUBLIC SCHOOLS | B78: 55 | Z78: 79 | AA78: 1 | AB78: Yes | AC78: 251322.25 | AD78: 79 | AE78: 2 | AF78: Yes | AH78: 79 | AI78: 3 | AJ78: Yes | AL78: 79 | AM78: 4 | AN78: Yes | AO78: 40740.79 | AT78: 79 | AU78: 6 | AV78: Yes | AW78: 8255.43 | BF78: 79 | BG78: 9 | BH78: Yes | BI78: 22442.71
A79: LYNCHBURG CITY PUBLIC SCHOOLS | B79: 115 | Z79: 80 | AA79: 1 | AB79: No | AC79: 1140222.44 | AD79: 80 | AE79: 2 | AF79: No | AH79: 80 | AI79: 3 | AJ79: No | AL79: 80 | AM79: 4 | AN79: No | AO79: 262917.12 | AT79: 80 | AU79: 6 | AV79: No | AW79: 32265.48 | BF79: 80 | BG79: 9 | BH79: No
A80: MADISON COUNTY PUBLIC SCHOOLS | B80: 56 | Z80: 81 | AA80: 1 | AB80: Yes | AC80: 487094.47 | AD80: 81 | AE80: 2 | AF80: Yes | AH80: 81 | AI80: 3 | AJ80: Yes | AL80: 81 | AM80: 4 | AN80: Yes | AO80: 87828.18 | AT80: 81 | AU80: 6 | AV80: Yes | AW80: 3184.24 | BF80: 81 | BG80: 9 | BH80: Yes
A81: MANASSAS CITY PUBLIC SCHOOLS | B81: 143 | Z81: 82 | AA81: 1 | AB81: No | AC81: 1560395.85 | AD81: 82 | AE81: 2 | AF81: No | AH81: 82 | AI81: 3 | AJ81: No | AL81: 82 | AM81: 4 | AN81: No | AO81: 315962.6 | AT81: 82 | AU81: 6 | AV81: No | AW81: 73935.86 | BF81: 82 | BG81: 9 | BH81: No
A82: MANASSAS PARK CITY PUBLIC SCHOOLS | B82: 144 | Z82: 83 | AA82: 1 | AB82: No | AC82: 1041024.89 | AD82: 83 | AE82: 2 | AF82: No | AH82: 83 | AI82: 3 | AJ82: No | AL82: 83 | AM82: 4 | AN82: No | AO82: 172734.73 | AT82: 83 | AU82: 6 | AV82: No | AW82: 471.74 | BF82: 83 | BG82: 9 | BH82: No | BI82: 77628.7
A83: MARTINSVILLE CITY PUBLIC SCHOOLS | B83: 116 | Z83: 84 | AA83: 1 | AB83: No | AC83: 899401.35 | AD83: 84 | AE83: 2 | AF83: No | AH83: 84 | AI83: 3 | AJ83: No | AL83: 84 | AM83: 4 | AN83: No | AO83: 115415.27 | AT83: 84 | AU83: 6 | AV83: No | AW83: 1179.35 | BF83: 84 | BG83: 9 | BH83: No
A84: MATHEWS COUNTY PUBLIC SCHOOLS | B84: 57 | Z84: 85 | AA84: 1 | AB84: Yes | AC84: 1061982.44 | AD84: 85 | AE84: 2 | AF84: Yes | AH84: 85 | AI84: 3 | AJ84: Yes | AL84: 85 | AM84: 4 | AN84: Yes | AO84: 201464.42 | AT84: 85 | AU84: 6 | AV84: Yes | AW84: 34554.86 | BF84: 85 | BG84: 9 | BH84: Yes
A85: MCVH AUTHORITY | B85: 948 | Z85: 86 | AA85: 1 | AB85: No | AC85: 1224664.82 | AD85: 86 | AE85: 2 | AF85: No | AH85: 86 | AI85: 3 | AJ85: No | AL85: 86 | AM85: 4 | AN85: No | AO85: 191707.77 | AT85: 86 | AU85: 6 | AV85: No | AW85: 1415.22 | BF85: 86 | BG85: 9 | BH85: No | BI85: 89163.73
A86: MECKLENBURG COUNTY PUBLIC SCHOOLS | B86: 58 | Z86: 87 | AA86: 1 | AB86: No | AC86: 548834.55 | AD86: 87 | AE86: 2 | AF86: No | AH86: 87 | AI86: 3 | AJ86: No | AL86: 87 | AM86: 4 | AN86: No | AO86: 84525.55 | AT86: 87 | AU86: 6 | AV86: No | AW86: 0 | BF86: 87 | BG86: 9 | BH86: No
A87: MIDDLESEX COUNTY PUBLIC SCHOOLS | B87: 59 | Z87: 88 | AA87: 1 | AB87: No | AC87: 2505705 | AD87: 88 | AE87: 2 | AF87: No | AH87: 88 | AI87: 3 | AJ87: No | AL87: 88 | AM87: 4 | AN87: No | AO87: 486466.97 | AT87: 88 | AU87: 6 | AV87: No | AW87: 104372.18 | BF87: 88 | BG87: 9 | BH87: No
A88: MONTGOMERY COUNTY PUBLIC SCHOOLS | B88: 60 | Z88: 89 | AA88: 1 | AB88: Yes | AC88: 1493865.24 | AD88: 89 | AE88: 2 | AF88: Yes | AH88: 89 | AI88: 3 | AJ88: Yes | AK88: 65468.33 | AL88: 89 | AM88: 4 | AN88: Yes | AO88: 413609.52 | AT88: 89 | AU88: 6 | AV88: Yes | AW88: 132204.76 | BF88: 89 | BG88: 9 | BH88: Yes
A89: NELSON COUNTY PUBLIC SCHOOLS | B89: 62 | Z89: 90 | AA89: 1 | AB89: Yes | AC89: 178917.13 | AD89: 90 | AE89: 2 | AF89: Yes | AH89: 90 | AI89: 3 | AJ89: Yes | AL89: 90 | AM89: 4 | AN89: Yes | AO89: 30420.7 | AT89: 90 | AU89: 6 | AV89: Yes | AW89: 235.87 | BF89: 90 | BG89: 9 | BH89: Yes
A90: NEW KENT COUNTY PUBLIC SCHOOLS | B90: 63 | Z90: 91 | AA90: 1 | AB90: Yes | AC90: 384791.1 | AD90: 91 | AE90: 2 | AF90: Yes | AH90: 91 | AI90: 3 | AJ90: Yes | AL90: 91 | AM90: 4 | AN90: Yes | AO90: 63792.12 | AT90: 91 | AU90: 6 | AV90: Yes | AW90: 1533.15 | BF90: 91 | BG90: 9 | BH90: Yes | BI90: 21248.73
A91: NEWPORT NEWS CITY PUBLIC SCHOOLS | B91: 117 | Z91: 92 | AA91: 1 | AB91: No | AC91: 1634724.65 | AD91: 92 | AE91: 2 | AF91: No | AH91: 92 | AI91: 3 | AJ91: No | AL91: 92 | AM91: 4 | AN91: No | AO91: 232963.91 | AT91: 92 | AU91: 6 | AV91: No | AW91: 5896.73 | BF91: 92 | BG91: 9 | BH91: No | BI91: 116908.5
A92: NORFOLK CITY PUBLIC SCHOOLS | B92: 118 | Z92: 93 | AA92: 1 | AB92: Yes | AC92: 797445.56 | AD92: 93 | AE92: 2 | AF92: Yes | AH92: 93 | AI92: 3 | AJ92: Yes | AL92: 93 | AM92: 4 | AN92: Yes | AO92: 164852.84 | AT92: 93 | AU92: 6 | AV92: Yes | AW92: 17499.52 | BF92: 93 | BG92: 9 | BH92: Yes
A93: NORTHAMPTON COUNTY PUBLIC SCHOOLS | B93: 65 | Z93: 94 | AA93: 1 | AB93: Yes | AC93: 1472677.86 | AD93: 94 | AE93: 2 | AF93: Yes | AH93: 94 | AI93: 3 | AJ93: Yes | AL93: 94 | AM93: 4 | AN93: Yes | AO93: 274815.59 | AT93: 94 | AU93: 6 | AV93: Yes | AW93: 7929.23 | BF93: 94 | BG93: 9 | BH93: Yes
A94: NORTHUMBERLAND COUNTY PUBLIC SCHOOLS | B94: 66 | Z94: 95 | AA94: 1 | AB94: Yes | AC94: 612667.46 | AD94: 95 | AE94: 2 | AF94: Yes | AG94: 58279.65 | AH94: 95 | AI94: 3 | AJ94: Yes | AL94: 95 | AM94: 4 | AN94: Yes | AO94: 87887.19 | AT94: 95 | AU94: 6 | AV94: Yes | AW94: 9434.77 | BF94: 95 | BG94: 9 | BH94: Yes | BI94: 30375.57
A95: NORTON CITY PUBLIC SCHOOLS | B95: 119 | Z95: 96 | AA95: 1 | AB95: No | AC95: 1830587.27 | AD95: 96 | AE95: 2 | AF95: No | AH95: 96 | AI95: 3 | AJ95: No | AL95: 96 | AM95: 4 | AN95: No | AO95: 264296.26 | AT95: 96 | AU95: 6 | AV95: No | AW95: 2830.43 | BF95: 96 | BG95: 9 | BH95: No | BI95: 111060.04
A96: NOTTOWAY COUNTY PUBLIC SCHOOLS | B96: 67 | Z96: 97 | AA96: 1 | AB96: Yes | AC96: 955292.83 | AD96: 97 | AE96: 2 | AF96: Yes | AH96: 97 | AI96: 3 | AJ96: Yes | AL96: 97 | AM96: 4 | AN96: Yes | AO96: 149735.52 | AT96: 97 | AU96: 6 | AV96: Yes | AW96: 1061.41 | BF96: 97 | BG96: 9 | BH96: Yes | BI96: 80866.6
A97: OLD DOMINION UNIVERSITY | B97: 798 | Z97: 98 | AA97: 1 | AB97: Yes | AC97: 790862.23 | AD97: 98 | AE97: 2 | AF97: Yes | AH97: 98 | AI97: 3 | AJ97: Yes | AL97: 98 | AM97: 4 | AN97: Yes | AO97: 175670.66 | AT97: 98 | AU97: 6 | AV97: Yes | AW97: 46105.14 | BF97: 98 | BG97: 9 | BH97: Yes
A98: ORANGE COUNTY PUBLIC SCHOOLS | B98: 68 | Z98: 101 | AA98: 1 | AB98: No | AC98: 2424663.52 | AD98: 101 | AE98: 2 | AF98: No | AH98: 101 | AI98: 3 | AJ98: No | AL98: 101 | AM98: 4 | AN98: No | AO98: 427702.93 | AT98: 101 | AU98: 6 | AV98: No | AW98: 467470.4 | BF98: 101 | BG98: 9 | BH98: No
A99: PAGE COUNTY PUBLIC SCHOOLS | B99: 69 | Z99: 102 | AA99: 1 | AB99: Yes | AC99: 1187022.84 | AD99: 102 | AE99: 2 | AF99: Yes | AH99: 102 | AI99: 3 | AJ99: Yes | AL99: 102 | AM99: 4 | AN99: Yes | AO99: 128760.12 | AT99: 102 | AU99: 6 | AV99: Yes | AW99: 4009.78 | BF99: 102 | BG99: 9 | BH99: Yes
A100: PATRICK COUNTY PUBLIC SCHOOLS | B100: 70 | Z100: 103 | AA100: 1 | AB100: No | AC100: 222093.19 | AD100: 103 | AE100: 2 | AF100: No | AH100: 103 | AI100: 3 | AJ100: No | AL100: 103 | AM100: 4 | AN100: No | AO100: 40726.37 | AT100: 103 | AU100: 6 | AV100: No | AW100: 0 | BF100: 103 | BG100: 9 | BH100: No | BI100: 19569.07
A101: PETERSBURG CITY PUBLIC SCHOOLS | B101: 120 | Z101: 104 | AA101: 1 | AB101: Yes | AC101: 1310005.38 | AD101: 104 | AE101: 2 | AF101: Yes | AH101: 104 | AI101: 3 | AJ101: Yes | AK101: 43275.68 | AL101: 104 | AM101: 4 | AN101: Yes | AO101: 188458.04 | AT101: 104 | AU101: 6 | AV101: Yes | AW101: 54601.12 | BF101: 104 | BG101: 9 | BH101: Yes
A102: PITTSYLVANIA COUNTY PUBLIC SCHOOLS | B102: 71 | Z102: 106 | AA102: 1 | AB102: Yes | AC102: 426114.92 | AD102: 106 | AE102: 2 | AF102: Yes | AH102: 106 | AI102: 3 | AJ102: Yes | AL102: 106 | AM102: 4 | AN102: Yes | AO102: 87528.35 | AT102: 106 | AU102: 6 | AV102: Yes | AW102: 9552.71 | BF102: 106 | BG102: 9 | BH102: Yes
A103: POQUOSON CITY PUBLIC SCHOOLS | B103: 142 | Z103: 107 | AA103: 1 | AB103: No | AC103: 189854 | AD103: 107 | AE103: 2 | AF103: No | AH103: 107 | AI103: 3 | AJ103: No | AL103: 107 | AM103: 4 | AN103: No | AO103: 38040.51 | AT103: 107 | AU103: 6 | AV103: No | AW103: 471.74 | BF103: 107 | BG103: 9 | BH103: No | BI103: 16938.28
A104: PORTSMOUTH CITY PUBLIC SCHOOLS | B104: 121 | Z104: 108 | AA104: 1 | AB104: No | AC104: 3362135.93 | AD104: 108 | AE104: 2 | AF104: No | AH104: 108 | AI104: 3 | AJ104: No | AL104: 108 | AM104: 4 | AN104: No | AO104: 406504.81 | AT104: 108 | AU104: 6 | AV104: No | AW104: 22171.72 | BF104: 108 | BG104: 9 | BH104: No
A105: POWHATAN COUNTY PUBLIC SCHOOLS | B105: 72 | Z105: 109 | AA105: 1 | AB105: No | AC105: 35900.35 | AD105: 109 | AE105: 2 | AF105: No | AH105: 109 | AI105: 3 | AJ105: No | AL105: 109 | AM105: 4 | AN105: No | AO105: 23907.86 | AT105: 109 | AU105: 6 | AV105: No | AW105: 18254.35 | BF105: 109 | BG105: 9 | BH105: No
A106: PRINCE EDWARD COUNTY PUBLIC SCHOOLS | B106: 73 | Z106: 110 | AA106: 1 | AB106: No | AC106: 869495.9 | AD106: 110 | AE106: 2 | AF106: No | AH106: 110 | AI106: 3 | AJ106: No | AL106: 110 | AM106: 4 | AN106: No | AO106: 153019.96 | AT106: 110 | AU106: 6 | AV106: No | AW106: 47173.87 | BF106: 110 | BG106: 9 | BH106: No
A107: PRINCE GEORGE COUNTY PUBLIC SCHOOLS | B107: 74 | Z107: 111 | AA107: 1 | AB107: No | AC107: 479304.13 | AD107: 111 | AE107: 2 | AF107: No | AH107: 111 | AI107: 3 | AJ107: No | AL107: 111 | AM107: 4 | AN107: No | AO107: 67972.99 | AT107: 111 | AU107: 6 | AV107: No | AW107: 22053.78 | BF107: 111 | BG107: 9 | BH107: No | BI107: 24344.98
A108: PRINCE WILLIAM COUNTY PUBLIC SCHOOLS | B108: 75 | Z108: 112 | AA108: 1 | AB108: No | AC108: 5925925.06 | AD108: 112 | AE108: 2 | AF108: No | AH108: 112 | AI108: 3 | AJ108: No | AL108: 112 | AM108: 4 | AN108: No | AO108: 814372.09 | AT108: 112 | AU108: 6 | AV108: No | AW108: 46199.34 | BF108: 112 | BG108: 9 | BH108: No
A109: PULASKI COUNTY PUBLIC SCHOOLS | B109: 77 | Z109: 113 | AA109: 1 | AB109: No | AC109: 1430946 | AD109: 113 | AE109: 2 | AF109: No | AH109: 113 | AI109: 3 | AJ109: No | AL109: 113 | AM109: 4 | AN109: No | AO109: 216841.17 | AT109: 113 | AU109: 6 | AV109: No | AW109: 215098.96 | BF109: 113 | BG109: 9 | BH109: No
A110: RADFORD CITY PUBLIC SCHOOLS | B110: 122 | Z110: 114 | AA110: 1 | AB110: Yes | AC110: 1270239.23 | AD110: 114 | AE110: 2 | AF110: Yes | AH110: 114 | AI110: 3 | AJ110: Yes | AL110: 114 | AM110: 4 | AN110: Yes | AO110: 215234.77 | AT110: 114 | AU110: 6 | AV110: Yes | AW110: 12147.27 | BF110: 114 | BG110: 9 | BH110: Yes
A111: RAPPAHANNOCK COUNTY PUBLIC SCHOOLS | B111: 78 | Z111: 115 | AA111: 1 | AB111: Yes | AC111: 3087839.06 | AD111: 115 | AE111: 2 | AF111: Yes | AH111: 115 | AI111: 3 | AJ111: Yes | AK111: 122059.6 | AL111: 115 | AM111: 4 | AN111: Yes | AO111: 517411.7 | AT111: 115 | AU111: 6 | AV111: Yes | AW111: 19930.96 | BF111: 115 | BG111: 9 | BH111: Yes
A112: RICHMOND CITY PUBLIC SCHOOLS | B112: 123 | Z112: 116 | AA112: 1 | AB112: Yes | AC112: 1034151.34 | AD112: 116 | AE112: 2 | AF112: Yes | AH112: 116 | AI112: 3 | AJ112: Yes | AL112: 116 | AM112: 4 | AN112: Yes | AO112: 126793.38 | AT112: 116 | AU112: 6 | AV112: Yes | AW112: 10967.92 | BF112: 116 | BG112: 9 | BH112: Yes | BI112: 41485.62
A113: RICHMOND COUNTY PUBLIC SCHOOLS | B113: 79 | Z113: 117 | AA113: 1 | AB113: No | AC113: 8621665.58 | AD113: 117 | AE113: 2 | AF113: No | AH113: 117 | AI113: 3 | AJ113: No | AK113: 88770.62 | AL113: 117 | AM113: 4 | AN113: No | AO113: 1186745.2 | AT113: 117 | AU113: 6 | AV113: No | AW113: 131809.91 | BF113: 117 | BG113: 9 | BH113: No
A114: ROANOKE CITY PUBLIC SCHOOLS | B114: 124 | Z114: 118 | AA114: 1 | AB114: Yes | AC114: 12444819.02 | AD114: 118 | AE114: 2 | AF114: Yes | AH114: 118 | AI114: 3 | AJ114: Yes | AK114: 169773.81 | AL114: 118 | AM114: 4 | AN114: Yes | AO114: 1528561.02 | AT114: 118 | AU114: 6 | AV114: Yes | AW114: 75360.25 | BF114: 118 | BG114: 9 | BH114: Yes
A115: ROANOKE COUNTY PUBLIC SCHOOLS | B115: 80 | Z115: 119 | AA115: 1 | AB115: Yes | AC115: 196028.34 | AD115: 119 | AE115: 2 | AF115: Yes | AH115: 119 | AI115: 3 | AJ115: Yes | AL115: 119 | AM115: 4 | AN115: Yes | AO115: 32191.41 | AT115: 119 | AU115: 6 | AV115: Yes | AW115: 589.67 | BF115: 119 | BG115: 9 | BH115: Yes | BI115: 16472.83
A116: ROCKBRIDGE COUNTY PUBLIC SCHOOLS | B116: 81 | Z116: 120 | AA116: 1 | AB116: Yes | AC116: 2363020.53 | AD116: 120 | AE116: 2 | AF116: Yes | AH116: 120 | AI116: 3 | AJ116: Yes | AL116: 120 | AM116: 4 | AN116: Yes | AO116: 305058.96 | AT116: 120 | AU116: 6 | AV116: Yes | AW116: 16958.7 | BF116: 120 | BG116: 9 | BH116: Yes
A117: ROCKINGHAM COUNTY PUBLIC SCHOOLS | B117: 82 | Z117: 121 | AA117: 1 | AB117: Yes | AC117: 5309040.83 | AD117: 121 | AE117: 2 | AF117: Yes | AH117: 121 | AI117: 3 | AJ117: Yes | AL117: 121 | AM117: 4 | AN117: Yes | AO117: 731840.05 | AT117: 121 | AU117: 6 | AV117: Yes | AW117: 6604.34 | BF117: 121 | BG117: 9 | BH117: Yes
A118: RUSSELL COUNTY PUBLIC SCHOOLS | B118: 83 | Z118: 122 | AA118: 1 | AB118: No | AC118: 330069.44 | AD118: 122 | AE118: 2 | AF118: No | AH118: 122 | AI118: 3 | AJ118: No | AL118: 122 | AM118: 4 | AN118: No | AO118: 56852.65 | AT118: 122 | AU118: 6 | AV118: No | AW118: 2830.43 | BF118: 122 | BG118: 9 | BH118: No
A119: SALEM CITY PUBLIC SCHOOLS | B119: 139 | Z119: 123 | AA119: 1 | AB119: No | AC119: 15808821.49 | AD119: 123 | AE119: 2 | AF119: No | AH119: 123 | AI119: 3 | AJ119: No | AK119: 68797.23 | AL119: 123 | AM119: 4 | AN119: No | AO119: 1640943.55 | AT119: 123 | AU119: 6 | AV119: No | AW119: 143402.03 | BF119: 123 | BG119: 9 | BH119: No
A120: SCOTT COUNTY PUBLIC SCHOOLS | B120: 84 | Z120: 124 | AA120: 1 | AB120: Yes | AC120: 5101630.67 | AD120: 124 | AE120: 2 | AF120: Yes | AH120: 124 | AI120: 3 | AJ120: Yes | AL120: 124 | AM120: 4 | AN120: Yes | AO120: 827887.68 | AT120: 124 | AU120: 6 | AV120: Yes | AW120: 117109.12 | BF120: 124 | BG120: 9 | BH120: Yes
A121: SHENANDOAH COUNTY PUBLIC SCHOOLS | B121: 85 | Z121: 126 | AA121: 1 | AB121: No | AC121: 777776.34 | AD121: 126 | AE121: 2 | AF121: No | AH121: 126 | AI121: 3 | AJ121: No | AL121: 126 | AM121: 4 | AN121: No | AO121: 115314.91 | AT121: 126 | AU121: 6 | AV121: No | AW121: 5189.13 | BF121: 126 | BG121: 9 | BH121: No
A122: SMYTH COUNTY PUBLIC SCHOOLS | B122: 86 | Z122: 127 | AA122: 1 | AB122: Yes | AC122: 2838005.51 | AD122: 127 | AE122: 2 | AF122: Yes | AH122: 127 | AI122: 3 | AJ122: Yes | AL122: 127 | AM122: 4 | AN122: Yes | AO122: 467475.25 | AT122: 127 | AU122: 6 | AV122: Yes | AW122: 3066.3 | BF122: 127 | BG122: 9 | BH122: Yes
A123: SOUTHAMPTON COUNTY PUBLIC SCHOOLS | B123: 87 | Z123: 128 | AA123: 1 | AB123: No | AC123: 11439845.93 | AD123: 128 | AE123: 2 | AF123: No | AH123: 128 | AI123: 3 | AJ123: No | AK123: 207501.32 | AL123: 128 | AM123: 4 | AN123: No | AO123: 1644936.85 | AT123: 128 | AU123: 6 | AV123: No | AW123: 132586.43 | BF123: 128 | BG123: 9 | BH123: No
A124: SOUTHWESTERN VA TRAINING CENTER | B124: 951 | Z124: 130 | AA124: 1 | AB124: Yes | AC124: 945847.46 | AD124: 130 | AE124: 2 | AF124: Yes | AH124: 130 | AI124: 3 | AJ124: Yes | AL124: 130 | AM124: 4 | AN124: Yes | AO124: 146539.57 | AT124: 130 | AU124: 6 | AV124: Yes | AW124: 14859.77 | BF124: 130 | BG124: 9 | BH124: Yes
A125: SPOTSYLVANIA COUNTY PUBLIC SCHOOLS | B125: 88 | Z125: 131 | AA125: 1 | AB125: Yes | AC125: 290080.55 | AD125: 131 | AE125: 2 | AF125: Yes | AH125: 131 | AI125: 3 | AJ125: Yes | AL125: 131 | AM125: 4 | AN125: Yes | AO125: 256738 | AT125: 131 | AU125: 6 | AV125: Yes | AW125: 55989.35 | BF125: 131 | BG125: 9 | BH125: Yes
A126: STAFFORD COUNTY PUBLIC SCHOOLS | B126: 89 | Z126: 132 | AA126: 1 | AB126: Yes | AC126: 918051.51 | AD126: 132 | AE126: 2 | AF126: Yes | AH126: 132 | AI126: 3 | AJ126: Yes | AL126: 132 | AM126: 4 | AN126: Yes | AO126: 169353.69 | AT126: 132 | AU126: 6 | AV126: Yes | AW126: 95409.14 | BF126: 132 | BG126: 9 | BH126: Yes
A127: STAUNTON CITY PUBLIC SCHOOLS | B127: 126 | Z127: 134 | AC127: 203535.25 | AD127: 134 | AE127: 2 | AH127: 134 | AI127: 3 | AL127: 134 | AM127: 4 | AO127: 0 | AT127: 134 | AU127: 6 | BF127: 134 | BG127: 9
A128: SUFFOLK CITY PUBLIC SCHOOLS | B128: 127 | Z128: 135 | AA128: 1 | AB128: Yes | AC128: 582345.29 | AD128: 135 | AE128: 2 | AF128: Yes | AH128: 135 | AI128: 3 | AJ128: Yes | AL128: 135 | AM128: 4 | AN128: Yes | AO128: 85880.59 | AT128: 135 | AU128: 6 | AV128: Yes | AW128: 825.54 | BF128: 135 | BG128: 9 | BH128: Yes | BI128: 22726.02
A129: SURRY COUNTY PUBLIC SCHOOLS | B129: 90 | Z129: 136 | AA129: 1 | AB129: No | AC129: 5736458.19 | AD129: 136 | AE129: 2 | AF129: No | AH129: 136 | AI129: 3 | AJ129: No | AL129: 136 | AM129: 4 | AN129: No | AO129: 1007299.39 | AT129: 136 | AU129: 6 | AV129: No | AW129: 83615.68 | BF129: 136 | BG129: 9 | BH129: No
A130: SUSSEX COUNTY PUBLIC SCHOOLS | B130: 91 | Z130: 137 | AA130: 1 | AB130: No | AC130: 45424.18 | AD130: 137 | AE130: 2 | AF130: No | AH130: 137 | AI130: 3 | AJ130: No | AL130: 137 | AM130: 4 | AN130: No | AO130: 13326.81 | AT130: 137 | AU130: 6 | AV130: No | AW130: 1886.95 | BF130: 137 | BG130: 9 | BH130: No
A131: TAZEWELL COUNTY PUBLIC SCHOOLS | B131: 92 | Z131: 138 | AC131: 408279.26 | AD131: 138 | AE131: 2 | AH131: 138 | AI131: 3 | AL131: 138 | AM131: 4 | AO131: 0 | AT131: 138 | AU131: 6 | BF131: 138 | BG131: 9
A132: VA BEACH CITY PUBLIC SCHOOLS | B132: 128 | Z132: 139 | AA132: 1 | AB132: Yes | AC132: 426422.45 | AD132: 139 | AE132: 2 | AF132: Yes | AH132: 139 | AI132: 3 | AJ132: Yes | AL132: 139 | AM132: 4 | AN132: Yes | AO132: 87692.45 | AT132: 139 | AU132: 6 | AV132: Yes | AW132: 7076.08 | BF132: 139 | BG132: 9 | BH132: Yes
A133: VA DEPT OF CORRECTIONAL EDUCATION | B133: 900 | Z133: 140 | AA133: 1 | AC133: 248360.28 | AD133: 140 | AE133: 2 | AH133: 140 | AI133: 3 | AL133: 140 | AM133: 4 | AO133: 0 | AT133: 140 | AU133: 6 | BF133: 140 | BG133: 9
A134: VIRGINIA COMMONWEALTH UNIVERSITY | B134: 881 | Z134: 142 | AB134: Yes | AC134: 103300.01 | AD134: 142 | AE134: 2 | AF134: Yes | AH134: 142 | AI134: 3 | AJ134: Yes | AL134: 142 | AM134: 4 | AN134: Yes | AO134: 27884.56 | AT134: 142 | AU134: 6 | AV134: Yes | AW134: 1297.28 | BF134: 142 | BG134: 9 | BH134: Yes
A135: VSDB HAMPTON | B135: 219 | Z135: 143 | AA135: 1 | AB135: Yes | AC135: 1224558.32 | AD135: 143 | AE135: 2 | AF135: Yes | AH135: 143 | AI135: 3 | AJ135: Yes | AL135: 143 | AM135: 4 | AN135: Yes | AO135: 208418.7 | AT135: 143 | AU135: 6 | AV135: Yes | AW135: 280566.57 | BF135: 143 | BG135: 9 | BH135: Yes
A136: VSDB STAUNTON | B136: 218 | Z136: 144 | AA136: 1 | AB136: Yes | AC136: 339650.44 | AD136: 144 | AE136: 2 | AF136: Yes | AH136: 144 | AI136: 3 | AJ136: Yes | AL136: 144 | AM136: 4 | AN136: Yes | AO136: 65965.02 | AT136: 144 | AU136: 6 | AV136: Yes | AW136: 113806.95 | BF136: 144 | BG136: 9 | BH136: Yes
A137: WARREN COUNTY PUBLIC SCHOOLS | B137: 93 | Z137: 202 | AA137: 1 | AB137: Yes | AC137: 270941.82 | AD137: 202 | AE137: 2 | AF137: Yes | AH137: 202 | AI137: 3 | AJ137: Yes | AL137: 202 | AM137: 4 | AN137: Yes | AO137: 20173.8 | AT137: 202 | AU137: 6 | AV137: Yes | AW137: 1061.41 | BF137: 202 | BG137: 9 | BH137: Yes | BI137: 11454.09
A138: WASHINGTON COUNTY PUBLIC SCHOOLS | B138: 94 | Z138: 207 | AA138: 1 | AB138: Yes | AC138: 61153.61 | AD138: 207 | AE138: 2 | AF138: Yes | AH138: 207 | AI138: 3 | AJ138: Yes | AL138: 207 | AM138: 4 | AN138: Yes | AO138: 13548.03 | AT138: 207 | AU138: 6 | AV138: Yes | AW138: 1061.41 | BF138: 207 | BG138: 9 | BH138: Yes
A139: WAYNESBORO CITY PUBLIC SCHOOLS | B139: 130 | Z139: 218 | AA139: 1 | AB139: No | AC139: 88380.54 | AD139: 218 | AE139: 2 | AF139: No | AH139: 218 | AI139: 3 | AJ139: No | AL139: 218 | AM139: 4 | AN139: No | AO139: 3816.25 | AT139: 218 | AU139: 6 | AV139: No | BF139: 218 | BG139: 9 | BH139: No
A140: WEST POINT TOWN PUBLIC SCHOOLS | B140: 207 | Z140: 219 | AD140: 219 | AE140: 2 | AH140: 219 | AI140: 3 | AL140: 219 | AM140: 4 | AO140: 0 | AT140: 219 | AU140: 6 | BF140: 219 | BG140: 9
A141: WESTMORELAND COUNTY PUBLIC SCHOOLS | B141: 95 | Z141: 871 | AD141: 871 | AE141: 2 | AG141: 151714.47 | AH141: 871 | AI141: 3 | AL141: 871 | AM141: 4 | AO141: 0 | AT141: 871 | AU141: 6 | BF141: 871 | BG141: 9
A142: WILLIAMSBURG CITY PUBLIC SCHOOLS | B142: 131 | Z142: 917 | AD142: 917 | AE142: 2 | AH142: 917 | AI142: 3 | AL142: 900 | AM142: 4 | AO142: 0 | AT142: 917 | AU142: 6 | BF142: 900 | BG142: 9
A143: WINCHESTER CITY PUBLIC SCHOOLS | B143: 132 | AL143: 917 | AM143: 6 | AO143: 14481.32
A144: WISE COUNTY PUBLIC SCHOOLS | B144: 96 | AC144: 216737360.7 | AG144: 776748.67 | AK144: 1107013.45 | AO144: =SUM(AO3:AO143) -> 34675396 | AS144: 0 | AW144: 11670120 | BA144: 0 | BI144: 1952272.8
A145: WOODROW WILSON REHABILITATION CTR | B145: 947
A146: WYTHE COUNTY PUBLIC SCHOOLS | B146: 97
A147: YORK COUNTY PUBLIC SCHOOLS | B147: 98 | BI147: 0
Y149: 1
Y150: 2
Y151: 3
Y152: 4
Y153: 5
Y154: 6
Y155: 7
Y156: 8
Y157: 9
Y158: 10
Y159: 11
Y160: 12
Y161: 13
Y162: 14
Y163: 15
Y164: 16
Y165: 17
Y166: 18
Y167: 19
Y168: 20
Y169: 21
Y170: 22
Y171: 23
Y172: 24
Y173: 25
Y174: 26
Y175: 27
Y176: 28
Y177: 29
Y178: 30
Y179: 31
Y180: 32
Y181: 33
Y182: 34
Y183: 35
Y184: 36
Y185: 37
Y186: 38
Y187: 39
Y188: 40
Y189: 41
Y190: 42
Y191: 43
Y192: 44
Y193: 45
Y194: 46
Y195: 47
Y196: 48
Y197: 49
Y198: 50
Y199: 51
Y200: 52
Y201: 53
... 87 more rows
